Workbook

Sheet INTRODUCTION
A1: PROJECT FINANCE MODELING
A3: PHILIPPE DUCHEMIN | D3: 2020-11-17
B7: MODELLING

Sheet MODELING
A1: PROJECT MODELING
A3: Calendar Year | C3: Year | D3: 2020 | E3: =D3+1 -> 2021 | F3: =E3+1 -> 2022 | G3: 2023 | H3: 2024 | I3: 2025 | J3: 2026 | K3: 2027 | L3: 2028 | M3: 2029 | N3: 2030 | O3: 2031 | P3: 2032 | Q3: 2033 | R3: 2034 | S3: 2035 | T3: 2036 | U3: 2037 | V3: 2038 | W3: 2039 | X3: 2040 | Y3: 2041 | Z3: 2042 | AA3: 2043 | AB3: 2044 | AC3: 2045 | AD3: 2046 | AE3: 2047 | AF3: 2048 | AG3: 2049 | AH3: 2050 | AI3: 2051 | AJ3: 2052 | AK3: 2053 | AL3: 2054
A4: Durations | C4: Duration | D4: 1 | E4: =D4+1 -> 2 | F4: 3 | G4: 4 | H4: 5 | I4: 6 | J4: 7 | K4: 8 | L4: 9 | M4: 10 | N4: 11 | O4: 12 | P4: 13 | Q4: 14 | R4: 15 | S4: 16 | T4: 17 | U4: 18 | V4: 19 | W4: 20 | X4: 21 | Y4: 22 | Z4: 23 | AA4: 24 | AB4: 25 | AC4: 26 | AD4: 27 | AE4: 28 | AF4: 29 | AG4: 30 | AH4: 31 | AI4: 32 | AJ4: 33 | AK4: 34 | AL4: 35
A5: Construction | C5: DurationConst | D5: 5 | E5: =D5 -> 5 | F5: 5 | G5: =F5 -> 5 | H5: 5 | I5: 5 | J5: 5 | K5: 5 | L5: 5 | M5: 5 | N5: 5 | O5: 5 | P5: 5 | Q5: 5 | R5: 5 | S5: 5 | T5: 5 | U5: 5 | V5: 5 | W5: 5 | X5: 5 | Y5: 5 | Z5: 5 | AA5: 5 | AB5: 5 | AC5: 5 | AD5: 5 | AE5: 5 | AF5: 5 | AG5: 5 | AH5: 5 | AI5: 5 | AJ5: 5 | AK5: 5 | AL5: 5
A6: Production | C6: DurationProd | D6: 25 | E6: 25 | F6: 25 | G6: 25 | H6: 25 | I6: 25 | J6: 25 | K6: 25 | L6: 25 | M6: 25 | N6: 25 | O6: 25 | P6: 25 | Q6: 25 | R6: 25 | S6: 25 | T6: 25 | U6: 25 | V6: 25 | W6: 25 | X6: 25 | Y6: 25 | Z6: 25 | AA6: 25 | AB6: 25 | AC6: 25 | AD6: 25 | AE6: 25 | AF6: 25 | AG6: 25 | AH6: 25 | AI6: 25 | AJ6: 25 | AK6: 25 | AL6: 25
A7: Termination | C7: DurationTerm | D7: 5 | E7: 5 | F7: 5 | G7: 5 | H7: 5 | I7: 5 | J7: 5 | K7: 5 | L7: 5 | M7: 5 | N7: 5 | O7: 5 | P7: 5 | Q7: 5 | R7: 5 | S7: 5 | T7: 5 | U7: 5 | V7: 5 | W7: 5 | X7: 5 | Y7: 5 | Z7: 5 | AA7: 5 | AB7: 5 | AC7: 5 | AD7: 5 | AE7: 5 | AF7: 5 | AG7: 5 | AH7: 5 | AI7: 5 | AJ7: 5 | AK7: 5 | AL7: 5
A8: Project | C8: DurationProject | D8: =D5+D6+D7 -> 35 | E8: =D8 -> 35 | F8: 35 | G8: 35 | H8: 35 | I8: 35 | J8: 35 | K8: 35 | L8: 35 | M8: 35 | N8: 35 | O8: 35 | P8: 35 | Q8: 35 | R8: 35 | S8: 35 | T8: 35 | U8: 35 | V8: 35 | W8: 35 | X8: 35 | Y8: 35 | Z8: 35 | AA8: 35 | AB8: 35 | AC8: 35 | AD8: 35 | AE8: 35 | AF8: 35 | AG8: 35 | AH8: 35 | AI8: 35 | AJ8: 35 | AK8: 35 | AL8: 35
C9: YearConst | D9: =--(Duration<=DurationConst) -> 1 | E9: =--(Duration<=DurationConst) -> 1 | F9: 1 | G9: 1 | H9: 1 | I9: 0 | J9: 0 | K9: 0 | L9: 0 | M9: 0 | N9: 0 | O9: 0 | P9: 0 | Q9: 0 | R9: 0 | S9: 0 | T9: 0 | U9: 0 | V9: 0 | W9: 0 | X9: 0 | Y9: 0 | Z9: 0 | AA9: 0 | AB9: 0 | AC9: 0 | AD9: 0 | AE9: 0 | AF9: 0 | AG9: 0 | AH9: 0 | AI9: 0 | AJ9: 0 | AK9: 0 | AL9: 0
C10: YearProd | D10: =--(Duration>DurationConst)*(Duration<=DurationProd+DurationConst) -> 0 | E10: 0 | F10: 0 | G10: 0 | H10: 0 | I10: 1 | J10: 1 | K10: 1 | L10: 1 | M10: 1 | N10: 1 | O10: 1 | P10: 1 | Q10: 1 | R10: 1 | S10: 1 | T10: 1 | U10: 1 | V10: 1 | W10: 1 | X10: 1 | Y10: 1 | Z10: 1 | AA10: 1 | AB10: 1 | AC10: 1 | AD10: 1 | AE10: 1 | AF10: 1 | AG10: 1 | AH10: 0 | AI10: 0 | AJ10: 0 | AK10: 0 | AL10: 0
C11: YearTerm | D11: =--(Duration>DurationConst+DurationProd) -> 0 | E11: 0 | F11: 0 | G11: 0 | H11: 0 | I11: 0 | J11: 0 | K11: 0 | L11: 0 | M11: 0 | N11: 0 | O11: 0 | P11: 0 | Q11: 0 | R11: 0 | S11: 0 | T11: 0 | U11: 0 | V11: 0 | W11: 0 | X11: 0 | Y11: 0 | Z11: 0 | AA11: 0 | AB11: 0 | AC11: 0 | AD11: 0 | AE11: 0 | AF11: 0 | AG11: 0 | AH11: 1 | AI11: 1 | AJ11: 1 | AK11: 1 | AL11: 1
A12: Inflation | C12: RateInflation | D12: 0.01 | E12: =D12 -> 0.01 | F12: =E12 -> 0.01 | G12: 0.01 | H12: 0.01 | I12: 0.01 | J12: 0.01 | K12: 0.01 | L12: 0.01 | M12: 0.01 | N12: 0.01 | O12: 0.01 | P12: 0.01 | Q12: 0.01 | R12: 0.01 | S12: 0.01 | T12: 0.01 | U12: 0.01 | V12: 0.01 | W12: 0.01 | X12: 0.01 | Y12: 0.01 | Z12: 0.01 | AA12: 0.01 | AB12: 0.01 | AC12: 0.01 | AD12: 0.01 | AE12: 0.01 | AF12: 0.01 | AG12: 0.01 | AH12: 0.01 | AI12: 0.01 | AJ12: 0.01 | AK12: 0.01 | AL12: 0.01
A13: Prices
A14: Initial Price | C14: PriceMWh | D14: 98 | E14: =D14 -> 98 | F14: =E14 -> 98 | G14: 98 | H14: 98 | I14: 98 | J14: 98 | K14: 98 | L14: 98 | M14: 98 | N14: 98 | O14: 98 | P14: 98 | Q14: 98 | R14: 98 | S14: 98 | T14: 98 | U14: 98 | V14: 98 | W14: 98 | X14: 98 | Y14: 98 | Z14: 98 | AA14: 98 | AB14: 98 | AC14: 98 | AD14: 98 | AE14: 98 | AF14: 98 | AG14: 98 | AH14: 98 | AI14: 98 | AJ14: 98 | AK14: 98 | AL14: 98
A15: Index | C15: Priceindex | D15: 100 | E15: =D15 -> 100 | F15: 100 | G15: 100 | H15: 100 | I15: 100 | J15: 100 | K15: 100 | L15: 100 | M15: 100 | N15: 100 | O15: 100 | P15: 100 | Q15: 100 | R15: 100 | S15: 100 | T15: 100 | U15: 100 | V15: 100 | W15: 100 | X15: 100 | Y15: 100 | Z15: 100 | AA15: 100 | AB15: 100 | AC15: 100 | AD15: 100 | AE15: 100 | AF15: 100 | AG15: 100 | AH15: 100 | AI15: 100 | AJ15: 100 | AK15: 100 | AL15: 100
A16: Production
A17: Capacity | C17: ProductionYear | D17: 500 | E17: =D17 -> 500 | F17: =E17 -> 500 | G17: 500 | H17: 500 | I17: 500 | J17: 500 | K17: =J17 -> 500 | L17: =K17 -> 500 | M17: =L17 -> 500 | N17: =M17 -> 500 | O17: =N17 -> 500 | P17: =O17 -> 500 | Q17: =P17 -> 500 | R17: =Q17 -> 500 | S17: =R17 -> 500 | T17: =S17 -> 500 | U17: =T17 -> 500 | V17: =U17 -> 500 | W17: =V17 -> 500 | X17: =W17 -> 500 | Y17: =X17 -> 500 | Z17: =Y17 -> 500 | AA17: =Z17 -> 500 | AB17: =AA17 -> 500 | AC17: =AB17 -> 500 | AD17: =AC17 -> 500 | AE17: =AD17 -> 500 | AF17: =AE17 -> 500 | AG17: =AF17 -> 500 | AH17: =AG17 -> 500 | AI17: =AH17 -> 500 | AJ17: =AI17 -> 500 | AK17: =AJ17 -> 500 | AL17: =AK17 -> 500
A18: Availability | C18: Availibility | D18: 0.5 | E18: 1 | F18: 1 | G18: 1 | H18: 1 | I18: 1 | J18: 1 | K18: 1 | L18: 1 | M18: =$D18 -> 0.5 | N18: 1 | O18: 1 | P18: 1 | Q18: 1 | R18: =$D18 -> 0.5 | S18: 1 | T18: 1 | U18: 1 | V18: 1 | W18: =$D18 -> 0.5 | X18: 1 | Y18: 1 | Z18: 1 | AA18: 1 | AB18: =$D18 -> 0.5 | AC18: 1 | AD18: 1 | AE18: 1 | AF18: 1 | AG18: =$D18 -> 0.5 | AH18: 1 | AI18: 1 | AJ18: 1 | AK18: 1 | AL18: 1
A19: Costs
A20: O&M | C20: CostOM | D20: 10 | E20: =D20 -> 10 | F20: =E20 -> 10 | G20: =F20 -> 10 | H20: =G20 -> 10 | I20: =H20 -> 10 | J20: =I20 -> 10 | K20: =J20 -> 10 | L20: =K20 -> 10 | M20: =L20 -> 10 | N20: =M20 -> 10 | O20: =N20 -> 10 | P20: =O20 -> 10 | Q20: =P20 -> 10 | R20: =Q20 -> 10 | S20: =R20 -> 10 | T20: =S20 -> 10 | U20: =T20 -> 10 | V20: =U20 -> 10 | W20: =V20 -> 10 | X20: =W20 -> 10 | Y20: =X20 -> 10 | Z20: =Y20 -> 10 | AA20: =Z20 -> 10 | AB20: =AA20 -> 10 | AC20: =AB20 -> 10 | AD20: =AC20 -> 10 | AE20: =AD20 -> 10 | AF20: =AE20 -> 10 | AG20: =AF20 -> 10 | AH20: =AG20 -> 10 | AI20: =AH20 -> 10 | AJ20: =AI20 -> 10 | AK20: =AJ20 -> 10 | AL20: =AK20 -> 10
A21: Fees | C21: CostFEE | D21: 0.02 | E21: =D21 -> 0.02 | F21: 0.02 | G21: 0.02 | H21: 0.02 | I21: 0.02 | J21: 0.02 | K21: 0.02 | L21: 0.02 | M21: 0.02 | N21: 0.02 | O21: 0.02 | P21: 0.02 | Q21: 0.02 | R21: 0.02 | S21: 0.02 | T21: 0.02 | U21: 0.02 | V21: 0.02 | W21: 0.02 | X21: 0.02 | Y21: 0.02 | Z21: 0.02 | AA21: 0.02 | AB21: 0.02 | AC21: 0.02 | AD21: 0.02 | AE21: 0.02 | AF21: 0.02 | AG21: 0.02 | AH21: 0.02 | AI21: 0.02 | AJ21: 0.02 | AK21: 0.02 | AL21: 0.02
A22: Environment | C22: CostENV | D22: 0.01 | E22: =D22 -> 0.01 | F22: =E22 -> 0.01 | G22: =F22 -> 0.01 | H22: =G22 -> 0.01 | I22: =H22 -> 0.01 | J22: =I22 -> 0.01 | K22: =J22 -> 0.01 | L22: =K22 -> 0.01 | M22: =L22 -> 0.01 | N22: =M22 -> 0.01 | O22: =N22 -> 0.01 | P22: =O22 -> 0.01 | Q22: =P22 -> 0.01 | R22: =Q22 -> 0.01 | S22: =R22 -> 0.01 | T22: =S22 -> 0.01 | U22: =T22 -> 0.01 | V22: =U22 -> 0.01 | W22: =V22 -> 0.01 | X22: =W22 -> 0.01 | Y22: =X22 -> 0.01 | Z22: =Y22 -> 0.01 | AA22: =Z22 -> 0.01 | AB22: =AA22 -> 0.01 | AC22: =AB22 -> 0.01 | AD22: =AC22 -> 0.01 | AE22: =AD22 -> 0.01 | AF22: =AE22 -> 0.01 | AG22: =AF22 -> 0.01 | AH22: =AG22 -> 0.01 | AI22: =AH22 -> 0.01 | AJ22: =AI22 -> 0.01 | AK22: =AJ22 -> 0.01 | AL22: =AK22 -> 0.01
A23: Taxes
A24: on CA | C24: TaxCA | D24: 0.005 | E24: =D24 -> 0.005 | F24: =E24 -> 0.005 | G24: =F24 -> 0.005 | H24: =G24 -> 0.005 | I24: =H24 -> 0.005 | J24: =I24 -> 0.005 | K24: =J24 -> 0.005 | L24: =K24 -> 0.005 | M24: =L24 -> 0.005 | N24: =M24 -> 0.005 | O24: =N24 -> 0.005 | P24: =O24 -> 0.005 | Q24: =P24 -> 0.005 | R24: =Q24 -> 0.005 | S24: =R24 -> 0.005 | T24: =S24 -> 0.005 | U24: =T24 -> 0.005 | V24: =U24 -> 0.005 | W24: =V24 -> 0.005 | X24: =W24 -> 0.005 | Y24: =X24 -> 0.005 | Z24: =Y24 -> 0.005 | AA24: =Z24 -> 0.005 | AB24: =AA24 -> 0.005 | AC24: =AB24 -> 0.005 | AD24: =AC24 -> 0.005 | AE24: =AD24 -> 0.005 | AF24: =AE24 -> 0.005 | AG24: =AF24 -> 0.005 | AH24: =AG24 -> 0.005 | AI24: =AH24 -> 0.005 | AJ24: =AI24 -> 0.005 | AK24: =AJ24 -> 0.005 | AL24: =AK24 -> 0.005
A25: on Capex | C25: TaxCAP | D25: 0.0125 | E25: =D25 -> 0.0125 | F25: 0.0125 | G25: 0.0125 | H25: 0.0125 | I25: 0.0125 | J25: 0.0125 | K25: 0.0125 | L25: 0.0125 | M25: 0.0125 | N25: 0.0125 | O25: 0.0125 | P25: 0.0125 | Q25: 0.0125 | R25: 0.0125 | S25: 0.0125 | T25: 0.0125 | U25: 0.0125 | V25: 0.0125 | W25: 0.0125 | X25: 0.0125 | Y25: 0.0125 | Z25: 0.0125 | AA25: 0.0125 | AB25: 0.0125 | AC25: 0.0125 | AD25: 0.0125 | AE25: 0.0125 | AF25: 0.0125 | AG25: 0.0125 | AH25: 0.0125 | AI25: 0.0125 | AJ25: 0.0125 | AK25: 0.0125 | AL25: 0.0125
A26: CompTax | C26: TaxCorp | D26: 0.3 | E26: =D26 -> 0.3 | F26: =E26 -> 0.3 | G26: =F26 -> 0.3 | H26: =G26 -> 0.3 | I26: =H26 -> 0.3 | J26: =I26 -> 0.3 | K26: =J26 -> 0.3 | L26: =K26 -> 0.3 | M26: =L26 -> 0.3 | N26: =M26 -> 0.3 | O26: =N26 -> 0.3 | P26: =O26 -> 0.3 | Q26: =P26 -> 0.3 | R26: =Q26 -> 0.3 | S26: =R26 -> 0.3 | T26: =S26 -> 0.3 | U26: =T26 -> 0.3 | V26: =U26 -> 0.3 | W26: =V26 -> 0.3 | X26: =W26 -> 0.3 | Y26: =X26 -> 0.3 | Z26: =Y26 -> 0.3 | AA26: =Z26 -> 0.3 | AB26: =AA26 -> 0.3 | AC26: =AB26 -> 0.3 | AD26: =AC26 -> 0.3 | AE26: =AD26 -> 0.3 | AF26: =AE26 -> 0.3 | AG26: =AF26 -> 0.3 | AH26: =AG26 -> 0.3 | AI26: =AH26 -> 0.3 | AJ26: =AI26 -> 0.3 | AK26: =AJ26 -> 0.3 | AL26: =AK26 -> 0.3
A27: Working Capital
A28: Collect | C28: DelaysCashIn | D28: 60 | E28: =D28 -> 60 | F28: =E28 -> 60 | G28: 60 | H28: 60 | I28: 60 | J28: 60 | K28: 60 | L28: 60 | M28: 60 | N28: 60 | O28: 60 | P28: 60 | Q28: 60 | R28: 60 | S28: 60 | T28: 60 | U28: 60 | V28: 60 | W28: 60 | X28: 60 | Y28: 60 | Z28: 60 | AA28: 60 | AB28: 60 | AC28: 60 | AD28: 60 | AE28: 60 | AF28: 60 | AG28: 60 | AH28: 60 | AI28: 60 | AJ28: 60 | AK28: 60 | AL28: 60
A29: Payments | C29: DelaysCashOut | D29: 90 | E29: =D29 -> 90 | F29: =E29 -> 90 | G29: 90 | H29: 90 | I29: 90 | J29: 90 | K29: 90 | L29: 90 | M29: 90 | N29: 90 | O29: 90 | P29: 90 | Q29: 90 | R29: 90 | S29: 90 | T29: 90 | U29: 90 | V29: 90 | W29: 90 | X29: 90 | Y29: 90 | Z29: 90 | AA29: 90 | AB29: 90 | AC29: 90 | AD29: 90 | AE29: 90 | AF29: 90 | AG29: 90 | AH29: 90 | AI29: 90 | AJ29: 90 | AK29: 90 | AL29: 90
A30: Construction
A31: Construction | C31: Construction | D31: 314000 | E31: =D31 -> 314000 | F31: =E31 -> 314000 | G31: 314000 | H31: 314000 | I31: 314000 | J31: =I31 -> 314000 | K31: =J31 -> 314000 | L31: =K31 -> 314000 | M31: =L31 -> 314000 | N31: =M31 -> 314000 | O31: =N31 -> 314000 | P31: =O31 -> 314000 | Q31: =P31 -> 314000 | R31: =Q31 -> 314000 | S31: =R31 -> 314000 | T31: =S31 -> 314000 | U31: =T31 -> 314000 | V31: =U31 -> 314000 | W31: =V31 -> 314000 | X31: =W31 -> 314000 | Y31: =X31 -> 314000 | Z31: =Y31 -> 314000 | AA31: =Z31 -> 314000 | AB31: =AA31 -> 314000 | AC31: =AB31 -> 314000 | AD31: =AC31 -> 314000 | AE31: =AD31 -> 314000 | AF31: =AE31 -> 314000 | AG31: =AF31 -> 314000 | AH31: =AG31 -> 314000 | AI31: =AH31 -> 314000 | AJ31: =AI31 -> 314000 | AK31: =AJ31 -> 314000 | AL31: =AK31 -> 314000
A32: Land | C32: Land | D32: 27000 | E32: =D32 -> 27000 | F32: 27000 | G32: 27000 | H32: 27000 | I32: 27000 | J32: 27000 | K32: 27000 | L32: 27000 | M32: 27000 | N32: 27000 | O32: 27000 | P32: 27000 | Q32: 27000 | R32: 27000 | S32: 27000 | T32: 27000 | U32: 27000 | V32: 27000 | W32: 27000 | X32: 27000 | Y32: 27000 | Z32: 27000 | AA32: 27000 | AB32: 27000 | AC32: 27000 | AD32: 27000 | AE32: 27000 | AF32: 27000 | AG32: 27000 | AH32: 27000 | AI32: 27000 | AJ32: 27000 | AK32: 27000 | AL32: 27000
A33: Subventions | C33: Subvention | D33: 10000 | E33: 10000 | F33: 10000 | G33: 10000 | H33: 10000 | I33: 10000 | J33: 10000 | K33: 10000 | L33: 10000 | M33: 10000 | N33: 10000 | O33: 10000 | P33: 10000 | Q33: 10000 | R33: 10000 | S33: 10000 | T33: 10000 | U33: 10000 | V33: 10000 | W33: 10000 | X33: 10000 | Y33: 10000 | Z33: 10000 | AA33: 10000 | AB33: 10000 | AC33: 10000 | AD33: 10000 | AE33: 10000 | AF33: 10000 | AG33: 10000 | AH33: 10000 | AI33: 10000 | AJ33: 10000 | AK33: 10000 | AL33: 10000
A34: Profile | C34: RateCapex | D34: 0.1 | E34: 0.15 | F34: 0.2 | G34: 0.32 | H34: 0.17 | I34: 0.06 | J34: 0 | K34: =J34 -> 0 | L34: 0 | M34: 0 | N34: 0 | O34: 0 | P34: 0 | Q34: 0 | R34: 0 | S34: 0 | T34: 0 | U34: 0 | V34: 0 | W34: 0 | X34: 0 | Y34: 0 | Z34: 0 | AA34: 0 | AB34: 0 | AC34: 0 | AD34: 0 | AE34: 0 | AF34: 0 | AG34: 0 | AH34: 0 | AI34: 0 | AJ34: 0 | AK34: 0 | AL34: 0
A35: Funding
C36: FinancingRate | D36: 0.11 | E36: =D36 -> 0.11 | F36: 0.11 | G36: 0.11 | H36: 0.11 | I36: 0.11 | J36: 0.11 | K36: 0.11 | L36: 0.11 | M36: 0.11 | N36: 0.11 | O36: 0.11 | P36: 0.11 | Q36: 0.11 | R36: 0.11 | S36: 0.11 | T36: 0.11 | U36: 0.11 | V36: 0.11 | W36: 0.11 | X36: 0.11 | Y36: 0.11 | Z36: 0.11 | AA36: 0.11 | AB36: 0.11 | AC36: 0.11 | AD36: 0.11 | AE36: 0.11 | AF36: 0.11 | AG36: 0.11 | AH36: 0.11 | AI36: 0.11 | AJ36: 0.11 | AK36: 0.11 | AL36: 0.11 | AN36: Tx d'augmentation du Capex, pour financement
A37: Equity | C37: RpEquity | D37: 0.25 | E37: 0.25 | F37: 0.25 | G37: 0.25 | H37: 0.25 | I37: 0.25 | J37: 0.25 | K37: 0.25 | L37: 0.25 | M37: 0.25 | N37: 0.25 | O37: 0.25 | P37: 0.25 | Q37: 0.25 | R37: 0.25 | S37: 0.25 | T37: 0.25 | U37: 0.25 | V37: 0.25 | W37: 0.25 | X37: 0.25 | Y37: 0.25 | Z37: 0.25 | AA37: 0.25 | AB37: 0.25 | AC37: 0.25 | AD37: 0.25 | AE37: 0.25 | AF37: 0.25 | AG37: 0.25 | AH37: 0.25 | AI37: 0.25 | AJ37: 0.25 | AK37: 0.25 | AL37: 0.25 | AN37: part d'Equity dans le capex
A38: Debt | C38: RpDebt | D38: 0.75 | E38: 0.75 | F38: 0.75 | G38: 0.75 | H38: 0.75 | I38: 0.75 | J38: 0.75 | K38: 0.75 | L38: 0.75 | M38: 0.75 | N38: 0.75 | O38: 0.75 | P38: 0.75 | Q38: 0.75 | R38: 0.75 | S38: 0.75 | T38: 0.75 | U38: 0.75 | V38: 0.75 | W38: 0.75 | X38: 0.75 | Y38: 0.75 | Z38: 0.75 | AA38: 0.75 | AB38: 0.75 | AC38: 0.75 | AD38: 0.75 | AE38: 0.75 | AF38: 0.75 | AG38: 0.75 | AH38: 0.75 | AI38: 0.75 | AJ38: 0.75 | AK38: 0.75 | AL38: 0.75
C39: RpBqDev | D39: 0.5 | E39: 0.5 | F39: 0.5 | G39: 0.5 | H39: 0.5 | I39: 0.5 | J39: 0.5 | K39: 0.5 | L39: 0.5 | M39: 0.5 | N39: 0.5 | O39: 0.5 | P39: 0.5 | Q39: 0.5 | R39: 0.5 | S39: 0.5 | T39: 0.5 | U39: 0.5 | V39: 0.5 | W39: 0.5 | X39: 0.5 | Y39: 0.5 | Z39: 0.5 | AA39: 0.5 | AB39: 0.5 | AC39: 0.5 | AD39: 0.5 | AE39: 0.5 | AF39: 0.5 | AG39: 0.5 | AH39: 0.5 | AI39: 0.5 | AJ39: 0.5 | AK39: 0.5 | AL39: 0.5
C40: RpBqExp | D40: 0.3 | E40: 0.3 | F40: 0.3 | G40: 0.3 | H40: 0.3 | I40: 0.3 | J40: 0.3 | K40: 0.3 | L40: 0.3 | M40: 0.3 | N40: 0.3 | O40: 0.3 | P40: 0.3 | Q40: 0.3 | R40: 0.3 | S40: 0.3 | T40: 0.3 | U40: 0.3 | V40: 0.3 | W40: 0.3 | X40: 0.3 | Y40: 0.3 | Z40: 0.3 | AA40: 0.3 | AB40: 0.3 | AC40: 0.3 | AD40: 0.3 | AE40: 0.3 | AF40: 0.3 | AG40: 0.3 | AH40: 0.3 | AI40: 0.3 | AJ40: 0.3 | AK40: 0.3 | AL40: 0.3
C41: RpBqCom | D41: 0.2 | E41: 0.2 | F41: 0.2 | G41: 0.2 | H41: 0.2 | I41: 0.2 | J41: 0.2 | K41: 0.2 | L41: 0.2 | M41: 0.2 | N41: 0.2 | O41: 0.2 | P41: 0.2 | Q41: 0.2 | R41: 0.2 | S41: 0.2 | T41: 0.2 | U41: 0.2 | V41: 0.2 | W41: 0.2 | X41: 0.2 | Y41: 0.2 | Z41: 0.2 | AA41: 0.2 | AB41: 0.2 | AC41: 0.2 | AD41: 0.2 | AE41: 0.2 | AF41: 0.2 | AG41: 0.2 | AH41: 0.2 | AI41: 0.2 | AJ41: 0.2 | AK41: 0.2 | AL41: 0.2
A42: Loan Duration
C43: DurGrace | D43: 7 | E43: =D43 -> 7 | F43: 7 | G43: 7 | H43: 7 | I43: 7 | J43: 7 | K43: 7 | L43: 7 | M43: 7 | N43: 7 | O43: 7 | P43: 7 | Q43: 7 | R43: 7 | S43: 7 | T43: 7 | U43: 7 | V43: 7 | W43: 7 | X43: 7 | Y43: 7 | Z43: 7 | AA43: 7 | AB43: 7 | AC43: 7 | AD43: 7 | AE43: 7 | AF43: 7 | AG43: 7 | AH43: 7 | AI43: 7 | AJ43: 7 | AK43: 7 | AL43: 7
C44: DurDev | D44: 15 | E44: 15 | F44: 15 | G44: 15 | H44: 15 | I44: 15 | J44: 15 | K44: 15 | L44: 15 | M44: 15 | N44: 15 | O44: 15 | P44: 15 | Q44: 15 | R44: 15 | S44: 15 | T44: 15 | U44: 15 | V44: 15 | W44: 15 | X44: 15 | Y44: 15 | Z44: 15 | AA44: 15 | AB44: 15 | AC44: 15 | AD44: 15 | AE44: 15 | AF44: 15 | AG44: 15 | AH44: 15 | AI44: 15 | AJ44: 15 | AK44: 15 | AL44: 15
C45: DurExp | D45: 12 | E45: 12 | F45: 12 | G45: 12 | H45: 12 | I45: 12 | J45: 12 | K45: 12 | L45: 12 | M45: 12 | N45: 12 | O45: 12 | P45: 12 | Q45: 12 | R45: 12 | S45: 12 | T45: 12 | U45: 12 | V45: 12 | W45: 12 | X45: 12 | Y45: 12 | Z45: 12 | AA45: 12 | AB45: 12 | AC45: 12 | AD45: 12 | AE45: 12 | AF45: 12 | AG45: 12 | AH45: 12 | AI45: 12 | AJ45: 12 | AK45: 12 | AL45: 12
C46: DurCom | D46: 7 | E46: 7 | F46: 7 | G46: 7 | H46: 7 | I46: 7 | J46: 7 | K46: 7 | L46: 7 | M46: 7 | N46: 7 | O46: 7 | P46: 7 | Q46: 7 | R46: 7 | S46: 7 | T46: 7 | U46: 7 | V46: 7 | W46: 7 | X46: 7 | Y46: 7 | Z46: 7 | AA46: 7 | AB46: 7 | AC46: 7 | AD46: 7 | AE46: 7 | AF46: 7 | AG46: 7 | AH46: 7 | AI46: 7 | AJ46: 7 | AK46: 7 | AL46: 7
A47: Amortization Method
A48: 1- linear | C48: AmoDev | D48: 1 | E48: =D48 -> 1 | F48: =E48 -> 1 | G48: =F48 -> 1 | H48: =G48 -> 1 | I48: =H48 -> 1 | J48: =I48 -> 1 | K48: =J48 -> 1 | L48: =K48 -> 1 | M48: =L48 -> 1 | N48: =M48 -> 1 | O48: =N48 -> 1 | P48: =O48 -> 1 | Q48: =P48 -> 1 | R48: =Q48 -> 1 | S48: =R48 -> 1 | T48: =S48 -> 1 | U48: =T48 -> 1 | V48: =U48 -> 1 | W48: =V48 -> 1 | X48: =W48 -> 1 | Y48: =X48 -> 1 | Z48: =Y48 -> 1 | AA48: =Z48 -> 1 | AB48: =AA48 -> 1 | AC48: =AB48 -> 1 | AD48: =AC48 -> 1 | AE48: =AD48 -> 1 | AF48: =AE48 -> 1 | AG48: =AF48 -> 1 | AH48: =AG48 -> 1 | AI48: =AH48 -> 1 | AJ48: =AI48 -> 1 | AK48: =AJ48 -> 1 | AL48: =AK48 -> 1
A49: 2- constant annuity | C49: AmoExp | D49: 2 | E49: 2 | F49: 2 | G49: 2 | H49: 2 | I49: 2 | J49: 2 | K49: 2 | L49: 2 | M49: 2 | N49: 2 | O49: 2 | P49: 2 | Q49: 2 | R49: 2 | S49: 2 | T49: 2 | U49: 2 | V49: 2 | W49: 2 | X49: 2 | Y49: 2 | Z49: 2 | AA49: 2 | AB49: 2 | AC49: 2 | AD49: 2 | AE49: 2 | AF49: 2 | AG49: 2 | AH49: 2 | AI49: 2 | AJ49: 2 | AK49: 2 | AL49: 2
A50: 3- constant DSCR | C50: AmoCom | D50: 2 | E50: 2 | F50: 2 | G50: 2 | H50: 2 | I50: 2 | J50: 2 | K50: 2 | L50: 2 | M50: 2 | N50: 2 | O50: 2 | P50: 2 | Q50: 2 | R50: 2 | S50: 2 | T50: 2 | U50: 2 | V50: 2 | W50: 2 | X50: 2 | Y50: 2 | Z50: 2 | AA50: 2 | AB50: 2 | AC50: 2 | AD50: 2 | AE50: 2 | AF50: 2 | AG50: 2 | AH50: 2 | AI50: 2 | AJ50: 2 | AK50: 2 | AL50: 2
A51: Loan Interest Rate
A52: LT BqDev | B52: 2 | C52: RateBqDev | D52: 0.02 | E52: =D52 -> 0.02 | F52: 0.02 | G52: 0.02 | H52: 0.02 | I52: 0.02 | J52: 0.02 | K52: 0.02 | L52: 0.02 | M52: 0.02 | N52: 0.02 | O52: 0.02 | P52: 0.02 | Q52: 0.02 | R52: 0.02 | S52: 0.02 | T52: 0.02 | U52: 0.02 | V52: 0.02 | W52: 0.02 | X52: 0.02 | Y52: 0.02 | Z52: 0.02 | AA52: 0.02 | AB52: 0.02 | AC52: 0.02 | AD52: 0.02 | AE52: 0.02 | AF52: 0.02 | AG52: 0.02 | AH52: 0.02 | AI52: 0.02 | AJ52: 0.02 | AK52: 0.02 | AL52: 0.02
A53: LT CredEp | B53: 6 | C53: RateBqExp | D53: 0.06 | E53: 0.06 | F53: 0.06 | G53: 0.06 | H53: 0.06 | I53: 0.06 | J53: 0.06 | K53: 0.06 | L53: 0.06 | M53: 0.06 | N53: 0.06 | O53: 0.06 | P53: 0.06 | Q53: 0.06 | R53: 0.06 | S53: 0.06 | T53: 0.06 | U53: 0.06 | V53: 0.06 | W53: 0.06 | X53: 0.06 | Y53: 0.06 | Z53: 0.06 | AA53: 0.06 | AB53: 0.06 | AC53: 0.06 | AD53: 0.06 | AE53: 0.06 | AF53: 0.06 | AG53: 0.06 | AH53: 0.06 | AI53: 0.06 | AJ53: 0.06 | AK53: 0.06 | AL53: 0.06
A54: LT BaCom | B54: 7 | C54: RateBqCom | D54: 0.07 | E54: 0.07 | F54: 0.07 | G54: 0.07 | H54: 0.07 | I54: 0.07 | J54: 0.07 | K54: 0.07 | L54: 0.07 | M54: 0.07 | N54: 0.07 | O54: 0.07 | P54: 0.07 | Q54: 0.07 | R54: 0.07 | S54: 0.07 | T54: 0.07 | U54: 0.07 | V54: 0.07 | W54: 0.07 | X54: 0.07 | Y54: 0.07 | Z54: 0.07 | AA54: 0.07 | AB54: 0.07 | AC54: 0.07 | AD54: 0.07 | AE54: 0.07 | AF54: 0.07 | AG54: 0.07 | AH54: 0.07 | AI54: 0.07 | AJ54: 0.07 | AK54: 0.07 | AL54: 0.07
A55: Bank Interest Rate
A56: Short Term | B56: 1 | C56: RateDeposit | D56: 0.01 | E56: 0.01 | F56: 0.01 | G56: 0.01 | H56: 0.01 | I56: 0.01 | J56: 0.01 | K56: 0.01 | L56: 0.01 | M56: 0.01 | N56: 0.01 | O56: 0.01 | P56: 0.01 | Q56: 0.01 | R56: 0.01 | S56: 0.01 | T56: 0.01 | U56: 0.01 | V56: 0.01 | W56: 0.01 | X56: 0.01 | Y56: 0.01 | Z56: 0.01 | AA56: 0.01 | AB56: 0.01 | AC56: 0.01 | AD56: 0.01 | AE56: 0.01 | AF56: 0.01 | AG56: 0.01 | AH56: 0.01 | AI56: 0.01 | AJ56: 0.01 | AK56: 0.01 | AL56: 0.01
A57: Short Term | B57: 5 | C57: RateFunding | D57: 0.05 | E57: 0.05 | F57: 0.05 | G57: 0.05 | H57: 0.05 | I57: 0.05 | J57: 0.05 | K57: 0.05 | L57: 0.05 | M57: 0.05 | N57: 0.05 | O57: 0.05 | P57: 0.05 | Q57: 0.05 | R57: 0.05 | S57: 0.05 | T57: 0.05 | U57: 0.05 | V57: 0.05 | W57: 0.05 | X57: 0.05 | Y57: 0.05 | Z57: 0.05 | AA57: 0.05 | AB57: 0.05 | AC57: 0.05 | AD57: 0.05 | AE57: 0.05 | AF57: 0.05 | AG57: 0.05 | AH57: 0.05 | AI57: 0.05 | AJ57: 0.05 | AK57: 0.05 | AL57: 0.05
A58: Fees | B58: 0.2 | C58: FeeBkRate | D58: 0.002 | E58: 0.002 | F58: =E58 -> 0.002 | G58: 0.002 | H58: 0.002 | I58: 0.002 | J58: 0.002 | K58: 0.002 | L58: 0.002 | M58: 0.002 | N58: 0.002 | O58: 0.002 | P58: 0.002 | Q58: 0.002 | R58: 0.002 | S58: 0.002 | T58: 0.002 | U58: 0.002 | V58: 0.002 | W58: 0.002 | X58: 0.002 | Y58: 0.002 | Z58: 0.002 | AA58: 0.002 | AB58: 0.002 | AC58: 0.002 | AD58: 0.002 | AE58: 0.002 | AF58: 0.002 | AG58: 0.002 | AH58: 0.002 | AI58: 0.002 | AJ58: 0.002 | AK58: 0.002 | AL58: 0.002
A59: Dividend
A60: Dividend | B60: 100 | C60: RateDividend | D60: 1 | E60: =D60 -> 1 | F60: =E60 -> 1 | G60: =F60 -> 1 | H60: =G60 -> 1 | I60: =H60 -> 1 | J60: =I60 -> 1 | K60: =J60 -> 1 | L60: =K60 -> 1 | M60: =L60 -> 1 | N60: =M60 -> 1 | O60: =N60 -> 1 | P60: =O60 -> 1 | Q60: =P60 -> 1 | R60: =Q60 -> 1 | S60: =R60 -> 1 | T60: =S60 -> 1 | U60: =T60 -> 1 | V60: =U60 -> 1 | W60: =V60 -> 1 | X60: =W60 -> 1 | Y60: =X60 -> 1 | Z60: =Y60 -> 1 | AA60: =Z60 -> 1 | AB60: =AA60 -> 1 | AC60: =AB60 -> 1 | AD60: =AC60 -> 1 | AE60: =AD60 -> 1 | AF60: =AE60 -> 1 | AG60: =AF60 -> 1 | AH60: =AG60 -> 1 | AI60: =AH60 -> 1 | AJ60: =AI60 -> 1 | AK60: =AJ60 -> 1 | AL60: =AK60 -> 1
A61: Reserve
A62: Reserve | C62: RateReserve | D62: 0.9 | E62: =D62 -> 0.9 | F62: =E62 -> 0.9 | G62: =F62 -> 0.9 | H62: =G62 -> 0.9 | I62: =H62 -> 0.9 | J62: =I62 -> 0.9 | K62: =J62 -> 0.9 | L62: =K62 -> 0.9 | M62: =L62 -> 0.9 | N62: =M62 -> 0.9 | O62: =N62 -> 0.9 | P62: =O62 -> 0.9 | Q62: =P62 -> 0.9 | R62: =Q62 -> 0.9 | S62: =R62 -> 0.9 | T62: =S62 -> 0.9 | U62: =T62 -> 0.9 | V62: =U62 -> 0.9 | W62: =V62 -> 0.9 | X62: =W62 -> 0.9 | Y62: =X62 -> 0.9 | Z62: =Y62 -> 0.9 | AA62: =Z62 -> 0.9 | AB62: =AA62 -> 0.9 | AC62: =AB62 -> 0.9 | AD62: =AC62 -> 0.9 | AE62: =AD62 -> 0.9 | AF62: =AE62 -> 0.9 | AG62: =AF62 -> 0.9 | AH62: =AG62 -> 0.9 | AI62: =AH62 -> 0.9 | AJ62: =AI62 -> 0.9 | AK62: =AJ62 -> 0.9 | AL62: =AK62 -> 0.9
C63: YearReserve | D63: 3 | E63: =D63 -> 3 | F63: =E63 -> 3 | G63: =F63 -> 3 | H63: =G63 -> 3 | I63: =H63 -> 3 | J63: =I63 -> 3 | K63: =J63 -> 3 | L63: =K63 -> 3 | M63: =L63 -> 3 | N63: =M63 -> 3 | O63: =N63 -> 3 | P63: =O63 -> 3 | Q63: =P63 -> 3 | R63: =Q63 -> 3 | S63: =R63 -> 3 | T63: =S63 -> 3 | U63: =T63 -> 3 | V63: =U63 -> 3 | W63: =V63 -> 3 | X63: =W63 -> 3 | Y63: =X63 -> 3 | Z63: =Y63 -> 3 | AA63: =Z63 -> 3 | AB63: =AA63 -> 3 | AC63: =AB63 -> 3 | AD63: =AC63 -> 3 | AE63: =AD63 -> 3 | AF63: =AE63 -> 3 | AG63: =AF63 -> 3 | AH63: =AG63 -> 3 | AI63: =AH63 -> 3 | AJ63: =AI63 -> 3 | AK63: =AJ63 -> 3 | AL63: =AK63 -> 3
A64: DF
A65: Discount Factor | C65: DF | D65: 0.08 | E65: =D65 -> 0.08 | F65: =E65 -> 0.08 | G65: =F65 -> 0.08 | H65: =G65 -> 0.08 | I65: =H65 -> 0.08 | J65: =I65 -> 0.08 | K65: =J65 -> 0.08 | L65: =K65 -> 0.08 | M65: =L65 -> 0.08 | N65: =M65 -> 0.08 | O65: =N65 -> 0.08 | P65: =O65 -> 0.08 | Q65: =P65 -> 0.08 | R65: =Q65 -> 0.08 | S65: =R65 -> 0.08 | T65: =S65 -> 0.08 | U65: =T65 -> 0.08 | V65: =U65 -> 0.08 | W65: =V65 -> 0.08 | X65: =W65 -> 0.08 | Y65: =X65 -> 0.08 | Z65: =Y65 -> 0.08 | AA65: =Z65 -> 0.08 | AB65: =AA65 -> 0.08 | AC65: =AB65 -> 0.08 | AD65: =AC65 -> 0.08 | AE65: =AD65 -> 0.08 | AF65: =AE65 -> 0.08 | AG65: =AF65 -> 0.08 | AH65: =AG65 -> 0.08 | AI65: =AH65 -> 0.08 | AJ65: =AI65 -> 0.08 | AK65: =AJ65 -> 0.08 | AL65: =AK65 -> 0.08
A66: DSCRTarget | C66: DSCRTarget | D66: 1.5 | E66: 1.5 | F66: 1.5 | G66: 1.5 | H66: 1.5 | I66: 1.5 | J66: 1.5 | K66: 1.5 | L66: 1.5 | M66: 1.5 | N66: 1.5 | O66: 1.5 | P66: 1.5 | Q66: 1.5 | R66: 1.5 | S66: 1.5 | T66: 1.5 | U66: 1.5 | V66: 1.5 | W66: 1.5 | X66: 1.5 | Y66: 1.5 | Z66: 1.5 | AA66: 1.5 | AB66: 1.5 | AC66: 1.5 | AD66: 1.5 | AE66: 1.5 | AF66: 1.5 | AG66: 1.5 | AH66: 1.5 | AI66: 1.5 | AJ66: 1.5 | AK66: 1.5 | AL66: 1.5
A68: PROJECT
A70: YEARS | C70: Year | D70: =INDIRECT($C70) -> 2020 | E70: =INDIRECT($C70) -> 2021 | F70: 2022 | G70: 2023 | H70: 2024 | I70: 2025 | J70: 2026 | K70: 2027 | L70: 2028 | M70: 2029 | N70: 2030 | O70: 2031 | P70: 2032 | Q70: 2033 | R70: 2034 | S70: 2035 | T70: 2036 | U70: 2037 | V70: 2038 | W70: 2039 | X70: 2040 | Y70: 2041 | Z70: 2042 | AA70: 2043 | AB70: 2044 | AC70: 2045 | AD70: 2046 | AE70: 2047 | AF70: 2048 | AG70: 2049 | AH70: 2050 | AI70: 2051 | AJ70: 2052 | AK70: 2053 | AL70: 2054
C72: RateInflation | D72: =INDIRECT($C72) -> 0.01 | E72: =INDIRECT($C72) -> 0.01 | F72: 0.01 | G72: 0.01 | H72: 0.01 | I72: 0.01 | J72: 0.01 | K72: 0.01 | L72: 0.01 | M72: 0.01 | N72: 0.01 | O72: 0.01 | P72: 0.01 | Q72: 0.01 | R72: 0.01 | S72: 0.01 | T72: 0.01 | U72: 0.01 | V72: 0.01 | W72: 0.01 | X72: 0.01 | Y72: 0.01 | Z72: 0.01 | AA72: 0.01 | AB72: 0.01 | AC72: 0.01 | AD72: 0.01 | AE72: 0.01 | AF72: 0.01 | AG72: 0.01 | AH72: 0.01 | AI72: 0.01 | AJ72: 0.01 | AK72: 0.01 | AL72: 0.01
D73: 1 | E73: =D73*(1+E72) -> 1.01 | F73: =E73*(1+F72) -> 1.0201 | G73: 1.030301 | H73: 1.04060401 | I73: 1.05101005 | J73: 1.061520151 | K73: 1.072135352 | L73: 1.082856706 | M73: 1.093685273 | N73: 1.104622125 | O73: 1.115668347 | P73: 1.12682503 | Q73: 1.13809328 | R73: 1.149474213 | S73: 1.160968955 | T73: 1.172578645 | U73: 1.184304431 | V73: 1.196147476 | W73: 1.20810895 | X73: 1.22019004 | Y73: 1.23239194 | Z73: 1.24471586 | AA73: 1.257163018 | AB73: 1.269734649 | AC73: 1.282431995 | AD73: 1.295256315 | AE73: 1.308208878 | AF73: 1.321290967 | AG73: 1.334503877 | AH73: 1.347848915 | AI73: 1.361327404 | AJ73: 1.374940679 | AK73: 1.388690085 | AL73: 1.402576986 | AM73: Infla | AN73: =_xlfn.FORMULATEXT(K73) -> =J73*(1+K72)
C74: PriceMWh | D74: =INDIRECT($C74) -> 98 | E74: =INDIRECT($C74) -> 98 | F74: 98 | G74: 98 | H74: 98 | I74: 98 | J74: 98 | K74: 98 | L74: 98 | M74: 98 | N74: 98 | O74: 98 | P74: 98 | Q74: 98 | R74: 98 | S74: 98 | T74: 98 | U74: 98 | V74: 98 | W74: 98 | X74: 98 | Y74: 98 | Z74: 98 | AA74: 98 | AB74: 98 | AC74: 98 | AD74: 98 | AE74: 98 | AF74: 98 | AG74: 98 | AH74: 98 | AI74: 98 | AJ74: 98 | AK74: 98 | AL74: 98
D75: =PriceMWh*Infla*Priceindex/100 -> 98 | E75: =PriceMWh*Infla*Priceindex/100 -> 98.98 | F75: 99.9698 | G75: 100.969498 | H75: 101.979193 | I75: 102.9989849 | J75: 104.0289748 | K75: 105.0692645 | L75: 106.1199572 | M75: 107.1811567 | N75: 108.2529683 | O75: 109.335498 | P75: 110.428853 | Q75: 111.5331415 | R75: 112.6484729 | S75: 113.7749576 | T75: 114.9127072 | U75: 116.0618343 | V75: 117.2224526 | W75: 118.3946771 | X75: 119.5786239 | Y75: 120.7744102 | Z75: 121.9821543 | AA75: 123.2019758 | AB75: 124.4339956 | AC75: 125.6783355 | AD75: 126.9351189 | AE75: 128.2044701 | AF75: 129.4865148 | AG75: 130.7813799 | AH75: 132.0891937 | AI75: 133.4100856 | AJ75: 134.7441865 | AK75: 136.0916284 | AL75: 137.4525446 | AM75: Price | AN75: =_xlfn.FORMULATEXT(K75) -> =PriceMWh*Infla*Priceindex/100
A77: REVENUE | D77: =YearProd*ProductionYear*Availibility -> 0 | E77: 0 | F77: 0 | G77: 0 | H77: 0 | I77: 500 | J77: 500 | K77: 500 | L77: 500 | M77: 250 | N77: 500 | O77: 500 | P77: 500 | Q77: 500 | R77: 250 | S77: 500 | T77: 500 | U77: 500 | V77: 500 | W77: 250 | X77: 500 | Y77: 500 | Z77: 500 | AA77: 500 | AB77: 250 | AC77: 500 | AD77: 500 | AE77: 500 | AF77: 500 | AG77: 250 | AH77: 0 | AI77: 0 | AJ77: 0 | AK77: 0 | AL77: 0 | AM77: ProductionNet | AN77: =_xlfn.FORMULATEXT(K77) -> =YearProd*ProductionYear*Availibility
D78: =ProductionNet*Price -> 0 | E78: =ProductionNet*Price -> 0 | F78: 0 | G78: 0 | H78: 0 | I78: 51499.49245 | J78: 52014.48738 | K78: 52534.63225 | L78: 53059.97858 | M78: 26795.28918 | N78: 54126.48415 | O78: 54667.74899 | P78: 55214.42648 | Q78: 55766.57074 | R78: 28162.11822 | S78: 56887.47881 | T78: 57456.3536 | U78: 58030.91714 | V78: 58611.22631 | W78: 29598.66929 | X78: 59789.31196 | Y78: 60387.20508 | Z78: 60991.07713 | AA78: 61600.9879 | AB78: 31108.49889 | AC78: 62839.16776 | AD78: 63467.55943 | AE78: 64102.23503 | AF78: 64743.25738 | AG78: 32695.34498 | AH78: 0 | AI78: 0 | AJ78: 0 | AK78: 0 | AL78: 0 | AM78: Revenues | AN78: =_xlfn.FORMULATEXT(K78) -> =ProductionNet*Price
A80: INVESTMENT | D80: =(Construction+Land-Subvention) -> 331000 | E80: 331000 | F80: 331000 | G80: 331000 | H80: 331000 | I80: 331000 | J80: 331000 | K80: 331000 | L80: 331000 | M80: 331000 | N80: 331000 | O80: 331000 | P80: 331000 | Q80: 331000 | R80: 331000 | S80: 331000 | T80: 331000 | U80: 331000 | V80: 331000 | W80: 331000 | X80: 331000 | Y80: 331000 | Z80: 331000 | AA80: 331000 | AB80: 331000 | AC80: 331000 | AD80: 331000 | AE80: 331000 | AF80: 331000 | AG80: 331000 | AH80: 331000 | AI80: 331000 | AJ80: 331000 | AK80: 331000 | AL80: 331000 | AM80: Cap | AN80: =_xlfn.FORMULATEXT(K80) -> =(Construction+Land-Subvention)
D81: =-Cap*RateCapex -> -33100 | E81: -49650 | F81: -66200 | G81: -105920 | H81: -56270 | I81: -19860 | J81: 0 | K81: 0 | L81: 0 | M81: 0 | N81: 0 | O81: 0 | P81: 0 | Q81: 0 | R81: 0 | S81: 0 | T81: 0 | U81: 0 | V81: 0 | W81: 0 | X81: 0 | Y81: 0 | Z81: 0 | AA81: 0 | AB81: 0 | AC81: 0 | AD81: 0 | AE81: 0 | AF81: 0 | AG81: 0 | AH81: 0 | AI81: 0 | AJ81: 0 | AK81: 0 | AL81: 0 | AM81: Capex | AN81: =_xlfn.FORMULATEXT(K81) -> =-Cap*RateCapex
D82: =-YearProd*Cap/DurationProd -> 0 | E82: 0 | F82: 0 | G82: 0 | H82: 0 | I82: -13240 | J82: -13240 | K82: -13240 | L82: -13240 | M82: -13240 | N82: -13240 | O82: -13240 | P82: -13240 | Q82: -13240 | R82: -13240 | S82: -13240 | T82: -13240 | U82: -13240 | V82: -13240 | W82: -13240 | X82: -13240 | Y82: -13240 | Z82: -13240 | AA82: -13240 | AB82: -13240 | AC82: -13240 | AD82: -13240 | AE82: -13240 | AF82: -13240 | AG82: -13240 | AH82: 0 | AI82: 0 | AJ82: 0 | AK82: 0 | AL82: 0 | AM82: Amort | AN82: =_xlfn.FORMULATEXT(K82) -> =-YearProd*Cap/DurationProd
D83: =-Capex+Amort -> 33100 | E83: =-Capex+Amort -> 49650 | F83: =-Capex+Amort -> 66200 | G83: =-Capex+Amort -> 105920 | H83: =-Capex+Amort -> 56270 | I83: =-Capex+Amort -> 6620 | J83: =-Capex+Amort -> -13240 | K83: =-Capex+Amort -> -13240 | L83: =-Capex+Amort -> -13240 | M83: =-Capex+Amort -> -13240 | N83: =-Capex+Amort -> -13240 | O83: =-Capex+Amort -> -13240 | P83: =-Capex+Amort -> -13240 | Q83: =-Capex+Amort -> -13240 | R83: =-Capex+Amort -> -13240 | S83: =-Capex+Amort -> -13240 | T83: =-Capex+Amort -> -13240 | U83: =-Capex+Amort -> -13240 | V83: =-Capex+Amort -> -13240 | W83: =-Capex+Amort -> -13240 | X83: =-Capex+Amort -> -13240 | Y83: =-Capex+Amort -> -13240 | Z83: =-Capex+Amort -> -13240 | AA83: =-Capex+Amort -> -13240 | AB83: =-Capex+Amort -> -13240 | AC83: =-Capex+Amort -> -13240 | AD83: =-Capex+Amort -> -13240 | AE83: =-Capex+Amort -> -13240 | AF83: =-Capex+Amort -> -13240 | AG83: =-Capex+Amort -> -13240 | AH83: =-Capex+Amort -> 0 | AI83: =-Capex+Amort -> 0 | AJ83: =-Capex+Amort -> 0 | AK83: =-Capex+Amort -> 0 | AL83: =-Capex+Amort -> 0 | AM83: CFCap | AN83: =_xlfn.FORMULATEXT(K83) -> =-Capex+Amort
C84: 0 | D84: =C84-D81+D82 -> 33100 | E84: =D84-E81+E82 -> 82750 | F84: =E84-F81+F82 -> 148950 | G84: 254870 | H84: 311140 | I84: 317760 | J84: 304520 | K84: 291280 | L84: 278040 | M84: 264800 | N84: 251560 | O84: 238320 | P84: 225080 | Q84: 211840 | R84: 198600 | S84: 185360 | T84: 172120 | U84: 158880 | V84: 145640 | W84: 132400 | X84: 119160 | Y84: 105920 | Z84: 92680 | AA84: 79440 | AB84: 66200 | AC84: 52960 | AD84: 39720 | AE84: 26480 | AF84: 13240 | AG84: 0 | AH84: 0 | AI84: 0 | AJ84: 0 | AK84: 0 | AL84: 0 | AM84: CapNet | AN84: =_xlfn.FORMULATEXT(K84) -> =J84-K81+K82
A86: COSTS | C86: O&M | D86: =-ProductionNet*CostOM*Infla*YearProd -> 0 | E86: 0 | F86: 0 | G86: 0 | H86: 0 | I86: -5255.05025 | J86: -5307.600753 | K86: -5360.676761 | L86: -5414.283528 | M86: -2734.213182 | N86: -5523.110627 | O86: -5578.341733 | P86: -5634.125151 | Q86: -5690.466402 | R86: -2873.685533 | S86: -5804.844777 | T86: -5862.893225 | U86: -5921.522157 | V86: -5980.737378 | W86: -3020.272376 | X86: -6100.9502 | Y86: -6161.959702 | Z86: -6223.579299 | AA86: -6285.815092 | AB86: -3174.336621 | AC86: -6412.159975 | AD86: -6476.281575 | AE86: -6541.044391 | AF86: -6606.454834 | AG86: -3336.259691 | AH86: 0 | AI86: 0 | AJ86: 0 | AK86: 0 | AL86: 0 | AM86: CoOM | AN86: =_xlfn.FORMULATEXT(K86) -> =-ProductionNet*CostOM*Infla*YearProd
C87: FEE | D87: =-Cap*CostFEE*Infla*YearProd -> 0 | E87: 0 | F87: 0 | G87: 0 | H87: 0 | I87: -6957.686532 | J87: -7027.263397 | K87: -7097.536031 | L87: -7168.511391 | M87: -7240.196505 | N87: -7312.59847 | O87: -7385.724455 | P87: -7459.581699 | Q87: -7534.177516 | R87: -7609.519292 | S87: -7685.614485 | T87: -7762.470629 | U87: -7840.095336 | V87: -7918.496289 | W87: -7997.681252 | X87: -8077.658064 | Y87: -8158.434645 | Z87: -8240.018992 | AA87: -8322.419181 | AB87: -8405.643373 | AC87: -8489.699807 | AD87: -8574.596805 | AE87: -8660.342773 | AF87: -8746.946201 | AG87: -8834.415663 | AH87: 0 | AI87: 0 | AJ87: 0 | AK87: 0 | AL87: 0 | AM87: CoFE | AN87: =-Cap*CostFEE*Infla*YearProd
C88: ENV | D88: =-Revenues*CostENV*Infla*YearProd -> 0 | E88: 0 | F88: 0 | G88: 0 | H88: 0 | I88: -541.2648415 | J88: -552.1442648 | K88: -563.2423645 | L88: -574.563536 | M88: -293.0561315 | N88: -597.8931196 | O88: -609.9107713 | P88: -622.1699778 | Q88: -634.6755943 | R88: -323.7162869 | S88: -660.4459685 | T88: -673.7209325 | U88: -687.2627232 | V88: -701.076704 | W88: -357.5841729 | X88: -729.5432295 | Y88: -744.2070484 | Z88: -759.16561 | AA88: -774.4248388 | AB88: -394.995389 | AC88: -805.8695927 | AD88: -822.0675715 | AE88: -838.5911297 | AF88: -855.4468114 | AG88: -436.3206462 | AH88: 0 | AI88: 0 | AJ88: 0 | AK88: 0 | AL88: 0 | AM88: CoEN | AN88: =-Revenues*CostENV*Infla*YearProd
D89: =CoOM+CoFE+CoEN -> 0 | E89: 0 | F89: 0 | G89: 0 | H89: 0 | I89: -12754.00162 | J89: -12887.00841 | K89: -13021.45516 | L89: -13157.35846 | M89: -10267.46582 | N89: -13433.60222 | O89: -13573.97696 | P89: -13715.87683 | Q89: -13859.31951 | R89: -10806.92111 | S89: -14150.90523 | T89: -14299.08479 | U89: -14448.88022 | V89: -14600.31037 | W89: -11375.5378 | X89: -14908.15149 | Y89: -15064.6014 | Z89: -15222.7639 | AA89: -15382.65911 | AB89: -11974.97538 | AC89: -15707.72937 | AD89: -15872.94595 | AE89: -16039.97829 | AF89: -16208.84785 | AG89: -12606.996 | AH89: 0 | AI89: 0 | AJ89: 0 | AK89: 0 | AL89: 0 | AM89: Cost | AN89: =CoOM+CoFE+CoEN
A90: TAXES | C90: on CA | D90: =-Revenues*TaxCA*Infla -> 0 | E90: 0 | F90: 0 | G90: 0 | H90: 0 | I90: =-Revenues*TaxCA*Infla -> -270.6324207 | J90: -276.0721324 | K90: -281.6211822 | L90: -287.281768 | M90: -146.5280658 | N90: -298.9465598 | O90: -304.9553856 | P90: -311.0849889 | Q90: -317.3377972 | R90: -161.8581434 | S90: -330.2229843 | T90: -336.8604662 | U90: -343.6313616 | V90: -350.538352 | W90: -178.7920864 | X90: -364.7716147 | Y90: -372.1035242 | Z90: -379.582805 | AA90: -387.2124194 | AB90: -197.4976945 | AC90: -402.9347964 | AD90: -411.0337858 | AE90: -419.2955649 | AF90: -427.7234057 | AG90: -218.1603231 | AH90: 0 | AI90: 0 | AJ90: 0 | AK90: 0 | AL90: 0 | AM90: TxCA | AN90: =-Revenues*TaxCA*Infla
C91: on CAPEX | D91: =-Cap*TaxCAP*Infla*YearProd -> 0 | E91: 0 | F91: 0 | G91: 0 | H91: 0 | I91: =-Cap*TaxCAP*Infla*YearProd -> -4348.554082 | J91: -4392.039623 | K91: -4435.960019 | L91: -4480.31962 | M91: -4525.122816 | N91: -4570.374044 | O91: -4616.077784 | P91: -4662.238562 | Q91: -4708.860948 | R91: -4755.949557 | S91: -4803.509053 | T91: -4851.544143 | U91: -4900.059585 | V91: -4949.060181 | W91: -4998.550782 | X91: -5048.53629 | Y91: -5099.021653 | Z91: -5150.01187 | AA91: -5201.511988 | AB91: -5253.527108 | AC91: -5306.062379 | AD91: -5359.123003 | AE91: -5412.714233 | AF91: -5466.841376 | AG91: -5521.509789 | AH91: 0 | AI91: 0 | AJ91: 0 | AK91: 0 | AL91: 0 | AM91: TxCAP | AN91: =-Cap*TaxCAP*Infla*YearProd
D92: =TxCA+TxCAP -> 0 | E92: 0 | F92: 0 | G92: 0 | H92: 0 | I92: =TxCA+TxCAP -> -4619.186503 | J92: -4668.111755 | K92: -4717.581202 | L92: -4767.601388 | M92: -4671.650882 | N92: -4869.320604 | O92: -4921.03317 | P92: -4973.323551 | Q92: -5026.198745 | R92: -4917.807701 | S92: -5133.732037 | T92: -5188.40461 | U92: -5243.690946 | V92: -5299.598533 | W92: -5177.342869 | X92: -5413.307905 | Y92: -5471.125177 | Z92: -5529.594675 | AA92: -5588.724408 | AB92: -5451.024803 | AC92: -5708.997176 | AD92: -5770.156789 | AE92: -5832.009798 | AF92: -5894.564781 | AG92: -5739.670112 | AH92: 0 | AI92: 0 | AJ92: 0 | AK92: 0 | AL92: 0 | AM92: TAX | AN92: =TxCA+TxCAP
A94: FINANCING
A95: CapitalNeed | D95: =-Capex*(1+FinancingRate) -> 33166.2 | E95: 49749.3 | F95: 66332.4 | G95: 106131.84 | H95: 56382.54 | I95: 19899.72 | J95: 0 | K95: 0 | L95: 0 | M95: 0 | N95: 0 | O95: 0 | P95: 0 | Q95: 0 | R95: 0 | S95: 0 | T95: 0 | U95: 0 | V95: 0 | W95: 0 | X95: 0 | Y95: 0 | Z95: 0 | AA95: 0 | AB95: 0 | AC95: 0 | AD95: 0 | AE95: 0 | AF95: 0 | AG95: 0 | AH95: 0 | AI95: 0 | AJ95: 0 | AK95: 0 | AL95: 0 | AM95: CapFi | AN95: =_xlfn.FORMULATEXT(K95) -> =-Capex*(1+FinancingRate)
A96: Equity | D96: =CapFi*RpEquity -> 8291.55 | E96: 12437.325 | F96: 16583.1 | G96: 26532.96 | H96: 14095.635 | I96: 4974.93 | J96: 0 | K96: 0 | L96: 0 | M96: 0 | N96: 0 | O96: 0 | P96: 0 | Q96: 0 | R96: 0 | S96: 0 | T96: 0 | U96: 0 | V96: 0 | W96: 0 | X96: 0 | Y96: 0 | Z96: 0 | AA96: 0 | AB96: 0 | AC96: 0 | AD96: 0 | AE96: 0 | AF96: 0 | AG96: 0 | AH96: 0 | AI96: 0 | AJ96: 0 | AK96: 0 | AL96: 0 | AM96: Eq | AN96: =CapFi*RpEquity
C97: CumEq | D97: =D96 -> 8291.55 | E97: =D97+E96 -> 20728.875 | F97: =E97+F96 -> 37311.975 | G97: 63844.935 | H97: 77940.57 | I97: 82915.5 | J97: =I97+J96 -> 82915.5 | K97: 82915.5 | L97: 82915.5 | M97: 82915.5 | N97: 82915.5 | O97: 82915.5 | P97: 82915.5 | Q97: 82915.5 | R97: 82915.5 | S97: 82915.5 | T97: 82915.5 | U97: 82915.5 | V97: 82915.5 | W97: 82915.5 | X97: 82915.5 | Y97: 82915.5 | Z97: 82915.5 | AA97: 82915.5 | AB97: 82915.5 | AC97: 82915.5 | AD97: 82915.5 | AE97: 82915.5 | AF97: 82915.5 | AG97: 82915.5 | AH97: 82915.5 | AI97: 82915.5 | AJ97: 82915.5 | AK97: 82915.5 | AL97: 82915.5 | AM97: CumEq | AN97: =J97+K96
A98: Debt | D98: =CapFi*RpDebt -> 24874.65 | E98: 37311.975 | F98: 49749.3 | G98: 79598.88 | H98: 42286.905 | I98: 14924.79 | J98: 0 | K98: 0 | L98: 0 | M98: 0 | N98: 0 | O98: 0 | P98: 0 | Q98: 0 | R98: 0 | S98: 0 | T98: 0 | U98: 0 | V98: 0 | W98: 0 | X98: 0 | Y98: 0 | Z98: 0 | AA98: 0 | AB98: 0 | AC98: 0 | AD98: 0 | AE98: 0 | AF98: 0 | AG98: 0 | AH98: 0 | AI98: 0 | AJ98: 0 | AK98: 0 | AL98: 0 | AM98: Dt | AN98: =CapFi*RpDebt
A99: BqDev | D99: =RpBqDev*Dt -> 12437.325 | E99: 18655.9875 | F99: 24874.65 | G99: 39799.44 | H99: 21143.4525 | I99: 7462.395 | J99: 0 | K99: 0 | L99: 0 | M99: 0 | N99: 0 | O99: 0 | P99: 0 | Q99: 0 | R99: 0 | S99: 0 | T99: 0 | U99: 0 | V99: 0 | W99: 0 | X99: 0 | Y99: 0 | Z99: 0 | AA99: 0 | AB99: 0 | AC99: 0 | AD99: 0 | AE99: 0 | AF99: 0 | AG99: 0 | AH99: 0 | AI99: 0 | AJ99: 0 | AK99: 0 | AL99: 0 | AM99: UsBqDev | AN99: =RpBqDev*Dt
A100: BqExp | D100: =RpBqExp*Dt -> 7462.395 | E100: 11193.5925 | F100: 14924.79 | G100: 23879.664 | H100: 12686.0715 | I100: 4477.437 | J100: 0 | K100: 0 | L100: 0 | M100: 0 | N100: 0 | O100: 0 | P100: 0 | Q100: 0 | R100: 0 | S100: 0 | T100: 0 | U100: 0 | V100: 0 | W100: 0 | X100: 0 | Y100: 0 | Z100: 0 | AA100: 0 | AB100: 0 | AC100: 0 | AD100: 0 | AE100: 0 | AF100: 0 | AG100: 0 | AH100: 0 | AI100: 0 | AJ100: 0 | AK100: 0 | AL100: 0 | AM100: UsBqExp | AN100: =RpBqExp*Dt
A101: BqCom | D101: =RpBqCom*Dt -> 4974.93 | E101: 7462.395 | F101: 9949.86 | G101: 15919.776 | H101: 8457.381 | I101: 2984.958 | J101: 0 | K101: 0 | L101: 0 | M101: 0 | N101: 0 | O101: 0 | P101: 0 | Q101: 0 | R101: 0 | S101: 0 | T101: 0 | U101: 0 | V101: 0 | W101: 0 | X101: 0 | Y101: 0 | Z101: 0 | AA101: 0 | AB101: 0 | AC101: 0 | AD101: 0 | AE101: 0 | AF101: 0 | AG101: 0 | AH101: 0 | AI101: 0 | AJ101: 0 | AK101: 0 | AL101: 0 | AM101: UsBqCom | AN101: =RpBqCom*Dt
A102: DEBT
C103: UsBqDev | D103: =INDIRECT($C103) -> 12437.325 | E103: =INDIRECT($C103) -> 18655.9875 | F103: 24874.65 | G103: 39799.44 | H103: 21143.4525 | I103: 7462.395 | J103: 0 | K103: 0 | L103: 0 | M103: 0 | N103: 0 | O103: 0 | P103: 0 | Q103: 0 | R103: 0 | S103: 0 | T103: 0 | U103: 0 | V103: 0 | W103: 0 | X103: 0 | Y103: 0 | Z103: 0 | AA103: 0 | AB103: 0 | AC103: 0 | AD103: 0 | AE103: 0 | AF103: =INDIRECT($C103) -> 0 | AG103: =INDIRECT($C103) -> 0 | AH103: 0 | AI103: 0 | AJ103: 0 | AK103: 0 | AL103: 0
D104: =(Duration>DurGrace)+(Duration>DurGrace+DurDev) -> 0 | E104: 0 | F104: 0 | G104: 0 | H104: 0 | I104: 0 | J104: 0 | K104: 1 | L104: 1 | M104: 1 | N104: 1 | O104: 1 | P104: 1 | Q104: 1 | R104: 1 | S104: 1 | T104: 1 | U104: 1 | V104: 1 | W104: 1 | X104: 1 | Y104: 1 | Z104: 2 | AA104: 2 | AB104: 2 | AC104: 2 | AD104: 2 | AE104: 2 | AF104: 2 | AG104: 2 | AH104: 2 | AI104: 2 | AJ104: 2 | AK104: 2 | AL104: 2 | AM104: PeriodDev | AN104: =_xlfn.FORMULATEXT(K104) -> =(Duration>DurGrace)+(Duration>DurGrace+DurDev)
A105: DEBTDEV | D105: =D103 -> 12437.325 | E105: =D105+E103*(PeriodDev=0) -> 31093.3125 | F105: =E105+F103*(PeriodDev=0) -> 55967.9625 | G105: 95767.4025 | H105: 116910.855 | I105: 124373.25 | J105: 124373.25 | K105: 124373.25 | L105: 124373.25 | M105: 124373.25 | N105: 124373.25 | O105: 124373.25 | P105: 124373.25 | Q105: 124373.25 | R105: 124373.25 | S105: 124373.25 | T105: 124373.25 | U105: 124373.25 | V105: 124373.25 | W105: 124373.25 | X105: 124373.25 | Y105: 124373.25 | Z105: 124373.25 | AA105: 124373.25 | AB105: 124373.25 | AC105: 124373.25 | AD105: 124373.25 | AE105: 124373.25 | AF105: 124373.25 | AG105: 124373.25 | AH105: 124373.25 | AI105: 124373.25 | AJ105: 124373.25 | AK105: 124373.25 | AL105: 124373.25 | AM105: EncBqDev | AN105: =_xlfn.FORMULATEXT(K105) -> =J105+K103*(PeriodDev=0)
A106: Linear | C106: Repayment | D106: =D105/DurDev*(PeriodDev=1) -> 0 | E106: 0 | F106: 0 | G106: 0 | H106: 0 | I106: 0 | J106: 0 | K106: =K105/DurDev*(PeriodDev=1) -> 8291.55 | L106: 8291.55 | M106: 8291.55 | N106: 8291.55 | O106: 8291.55 | P106: 8291.55 | Q106: 8291.55 | R106: 8291.55 | S106: 8291.55 | T106: 8291.55 | U106: 8291.55 | V106: 8291.55 | W106: 8291.55 | X106: 8291.55 | Y106: 8291.55 | Z106: 0 | AA106: 0 | AB106: 0 | AC106: 0 | AD106: 0 | AE106: 0 | AF106: 0 | AG106: 0 | AH106: 0 | AI106: 0 | AJ106: 0 | AK106: 0 | AL106: 0 | AM106: AmoLinDev | AN106: =_xlfn.FORMULATEXT(K106) -> =K105/DurDev*(PeriodDev=1)
C107: OutstandingC | D107: =D105-D106 -> 12437.325 | E107: =D107+E103-E106 -> 31093.3125 | F107: =E107+F103-F106 -> 55967.9625 | G107: =F107+G103-G106 -> 95767.4025 | H107: =G107+H103-H106 -> 116910.855 | I107: =H107+I103-I106 -> 124373.25 | J107: =I107+J103-J106 -> 124373.25 | K107: =J107+K103-K106 -> 116081.7 | L107: =K107+L103-L106 -> 107790.15 | M107: =L107+M103-M106 -> 99498.6 | N107: =M107+N103-N106 -> 91207.05 | O107: =N107+O103-O106 -> 82915.5 | P107: =O107+P103-P106 -> 74623.95 | Q107: =P107+Q103-Q106 -> 66332.4 | R107: =Q107+R103-R106 -> 58040.85 | S107: =R107+S103-S106 -> 49749.3 | T107: =S107+T103-T106 -> 41457.75 | U107: =T107+U103-U106 -> 33166.2 | V107: =U107+V103-V106 -> 24874.65 | W107: 16583.1 | X107: =W107+X103-X106 -> 8291.55 | Y107: =X107+Y103-Y106 -> -2.910383046e-11 | Z107: =Y107+Z103-Z106 -> -2.910383046e-11 | AA107: =Z107+AA103-AA106 -> -2.910383046e-11 | AB107: =AA107+AB103-AB106 -> -2.910383046e-11 | AC107: -2.910383046e-11 | AD107: =AC107+AD103-AD106 -> -2.910383046e-11 | AE107: =AD107+AE103-AE106 -> -2.910383046e-11 | AF107: =AE107+AF103-AF106 -> -2.910383046e-11 | AG107: =AF107+AG103-AG106 -> -2.910383046e-11 | AH107: =AG107+AH103-AH106 -> -2.910383046e-11 | AI107: -2.910383046e-11 | AJ107: =AI107+AJ103-AJ106 -> -2.910383046e-11 | AK107: =AJ107+AK103-AK106 -> -2.910383046e-11 | AL107: =AK107+AL103-AL106 -> -2.910383046e-11 | AM107: CrdLinDev | AN107: =J107+K103-K106
C108: Interest | D108: 0 | E108: =D107*RateBqDev -> 248.7465 | F108: 621.86625 | G108: 1119.35925 | H108: 1915.34805 | I108: 2338.2171 | J108: 2487.465 | K108: 2487.465 | L108: 2321.634 | M108: 2155.803 | N108: 1989.972 | O108: 1824.141 | P108: 1658.31 | Q108: 1492.479 | R108: 1326.648 | S108: 1160.817 | T108: 994.986 | U108: 829.155 | V108: 663.324 | W108: 497.493 | X108: 331.662 | Y108: 165.831 | Z108: -5.820766091e-13 | AA108: -5.820766091e-13 | AB108: -5.820766091e-13 | AC108: -5.820766091e-13 | AD108: -5.820766091e-13 | AE108: -5.820766091e-13 | AF108: -5.820766091e-13 | AG108: -5.820766091e-13 | AH108: -5.820766091e-13 | AI108: -5.820766091e-13 | AJ108: -5.820766091e-13 | AK108: -5.820766091e-13 | AL108: -5.820766091e-13 | AM108: IntLinDev | AN108: =J107*RateBqDev
C109: Installment | D109: =D108+D106 -> 0 | E109: 248.7465 | F109: 621.86625 | G109: 1119.35925 | H109: 1915.34805 | I109: 2338.2171 | J109: 2487.465 | K109: 10779.015 | L109: 10613.184 | M109: 10447.353 | N109: 10281.522 | O109: 10115.691 | P109: 9949.86 | Q109: 9784.029 | R109: 9618.198 | S109: 9452.367 | T109: 9286.536 | U109: 9120.705 | V109: 8954.874 | W109: 8789.043 | X109: 8623.212 | Y109: 8457.381 | Z109: -5.820766091e-13 | AA109: -5.820766091e-13 | AB109: -5.820766091e-13 | AC109: -5.820766091e-13 | AD109: -5.820766091e-13 | AE109: -5.820766091e-13 | AF109: -5.820766091e-13 | AG109: -5.820766091e-13 | AH109: -5.820766091e-13 | AI109: -5.820766091e-13 | AJ109: -5.820766091e-13 | AK109: -5.820766091e-13 | AL109: -5.820766091e-13 | AM109: EchLinDev | AN109: =K108+K106
C110: =IRR(FluxLinDev) -> 0.02 | D110: =D103-D109 -> 12437.325 | E110: =E103-E109 -> 18407.241 | F110: 24252.78375 | G110: 38680.08075 | H110: 19228.10445 | I110: 5124.1779 | J110: -2487.465 | K110: -10779.015 | L110: =L103-L109 -> -10613.184 | M110: -10447.353 | N110: -10281.522 | O110: -10115.691 | P110: -9949.86 | Q110: -9784.029 | R110: -9618.198 | S110: -9452.367 | T110: -9286.536 | U110: -9120.705 | V110: -8954.874 | W110: -8789.043 | X110: -8623.212 | Y110: -8457.381 | Z110: 5.820766091e-13 | AA110: 5.820766091e-13 | AB110: 5.820766091e-13 | AC110: 5.820766091e-13 | AD110: 5.820766091e-13 | AE110: 5.820766091e-13 | AF110: 5.820766091e-13 | AG110: 5.820766091e-13 | AH110: 5.820766091e-13 | AI110: 5.820766091e-13 | AJ110: 5.820766091e-13 | AK110: 5.820766091e-13 | AL110: 5.820766091e-13 | AM110: FluxLinDev | AN110: =K103-K109
D111: =D104 -> 0 | E111: =D111+E104*(PeriodDev=1) -> 0 | F111: 0 | G111: 0 | H111: 0 | I111: 0 | J111: 0 | K111: 1 | L111: 2 | M111: 3 | N111: 4 | O111: 5 | P111: 6 | Q111: 7 | R111: 8 | S111: 9 | T111: 10 | U111: 11 | V111: 12 | W111: 13 | X111: 14 | Y111: 15 | Z111: 15 | AA111: 15 | AB111: 15 | AC111: 15 | AD111: 15 | AE111: 15 | AF111: 15 | AG111: 15 | AH111: 15 | AI111: 15 | AJ111: 15 | AK111: 15 | AL111: 15 | AM111: PeriodDevCum
A112: Constant | C112: Repayment | D112: =(PeriodDev=1)*IntVarDev/((1+RateBqDev)^(DurDev-PeriodDevCum+1)-1) -> 0 | E112: 0 | F112: 0 | G112: 0 | H112: 0 | I112: 0 | J112: 0 | K112: 7191.941917 | L112: 7335.780755 | M112: 7482.49637 | N112: 7632.146297 | O112: 7784.789223 | P112: 7940.485008 | Q112: 8099.294708 | R112: 8261.280602 | S112: 8426.506214 | T112: 8595.036338 | U112: 8766.937065 | V112: 8942.275807 | W112: 9121.121323 | X112: 9303.543749 | Y112: 9489.614624 | Z112: 0 | AA112: 0 | AB112: 0 | AC112: 0 | AD112: 0 | AE112: 0 | AF112: 0 | AG112: 0 | AH112: 0 | AI112: 0 | AJ112: 0 | AK112: 0 | AL112: 0 | AM112: AmoVarDev | AN112: =(PeriodDev=1)*IntVarDev/((1+RateBqDev)^(DurDev-PeriodDevCum+1)-1)
C113: OutstandingC | D113: =D103 -> 12437.325 | E113: =D113+E103-E112 -> 31093.3125 | F113: 55967.9625 | G113: 95767.4025 | H113: 116910.855 | I113: 124373.25 | J113: 124373.25 | K113: 117181.3081 | L113: 109845.5273 | M113: 102363.031 | N113: 94730.88466 | O113: 86946.09544 | P113: 79005.61043 | Q113: 70906.31572 | R113: 62645.03512 | S113: 54218.52891 | T113: 45623.49257 | U113: 36856.5555 | V113: 27914.2797 | W113: 18793.15837 | X113: 9489.614624 | Y113: 0 | Z113: 0 | AA113: 0 | AB113: 0 | AC113: 0 | AD113: 0 | AE113: 0 | AF113: 0 | AG113: 0 | AH113: 0 | AI113: 0 | AJ113: 0 | AK113: 0 | AL113: 0 | AM113: CrdVarDev | AN113: =J113+K103-K112
C114: Interest | D114: 0 | E114: =D113*RateBqDev -> 248.7465 | F114: 621.86625 | G114: 1119.35925 | H114: 1915.34805 | I114: 2338.2171 | J114: 2487.465 | K114: 2487.465 | L114: 2343.626162 | M114: 2196.910547 | N114: 2047.260619 | O114: 1894.617693 | P114: 1738.921909 | Q114: 1580.112209 | R114: 1418.126314 | S114: 1252.900702 | T114: 1084.370578 | U114: 912.4698513 | V114: 737.13111 | W114: 558.2855939 | X114: 375.8631675 | Y114: 189.7922925 | Z114: 0 | AA114: 0 | AB114: 0 | AC114: 0 | AD114: 0 | AE114: 0 | AF114: 0 | AG114: 0 | AH114: 0 | AI114: 0 | AJ114: 0 | AK114: 0 | AL114: 0 | AM114: IntVarDev | AN114: =J113*RateBqDev
C115: Installment | D115: =D112+D114 -> 0 | E115: =E112+E114 -> 248.7465 | F115: =F112+F114 -> 621.86625 | G115: =G112+G114 -> 1119.35925 | H115: =H112+H114 -> 1915.34805 | I115: =I112+I114 -> 2338.2171 | J115: =J112+J114 -> 2487.465 | K115: =K112+K114 -> 9679.406917 | L115: =L112+L114 -> 9679.406917 | M115: =M112+M114 -> 9679.406917 | N115: =N112+N114 -> 9679.406917 | O115: =O112+O114 -> 9679.406917 | P115: =P112+P114 -> 9679.406917 | Q115: =Q112+Q114 -> 9679.406917 | R115: =R112+R114 -> 9679.406917 | S115: =S112+S114 -> 9679.406917 | T115: =T112+T114 -> 9679.406917 | U115: =U112+U114 -> 9679.406917 | V115: =V112+V114 -> 9679.406917 | W115: =W112+W114 -> 9679.406917 | X115: =X112+X114 -> 9679.406917 | Y115: =Y112+Y114 -> 9679.406917 | Z115: =Z112+Z114 -> 0 | AA115: =AA112+AA114 -> 0 | AB115: =AB112+AB114 -> 0 | AC115: =AC112+AC114 -> 0 | AD115: =AD112+AD114 -> 0 | AE115: =AE112+AE114 -> 0 | AF115: =AF112+AF114 -> 0 | AG115: =AG112+AG114 -> 0 | AH115: =AH112+AH114 -> 0 | AI115: =AI112+AI114 -> 0 | AJ115: =AJ112+AJ114 -> 0 | AK115: =AK112+AK114 -> 0 | AL115: =AL112+AL114 -> 0 | AM115: EchVarDev | AN115: =K112+K114
C116: =IRR(FluxVarDev) -> 0.02 | D116: =D103-D115 -> 12437.325 | E116: =E103-E115 -> 18407.241 | F116: =F103-F115 -> 24252.78375 | G116: =G103-G115 -> 38680.08075 | H116: =H103-H115 -> 19228.10445 | I116: =I103-I115 -> 5124.1779 | J116: =J103-J115 -> -2487.465 | K116: =K103-K115 -> -9679.406917 | L116: =L103-L115 -> -9679.406917 | M116: =M103-M115 -> -9679.406917 | N116: =N103-N115 -> -9679.406917 | O116: =O103-O115 -> -9679.406917 | P116: =P103-P115 -> -9679.406917 | Q116: =Q103-Q115 -> -9679.406917 | R116: =R103-R115 -> -9679.406917 | S116: =S103-S115 -> -9679.406917 | T116: =T103-T115 -> -9679.406917 | U116: =U103-U115 -> -9679.406917 | V116: =V103-V115 -> -9679.406917 | W116: =W103-W115 -> -9679.406917 | X116: =X103-X115 -> -9679.406917 | Y116: =Y103-Y115 -> -9679.406917 | Z116: =Z103-Z115 -> 0 | AA116: =AA103-AA115 -> 0 | AB116: =AB103-AB115 -> 0 | AC116: =AC103-AC115 -> 0 | AD116: =AD103-AD115 -> 0 | AE116: =AE103-AE115 -> 0 | AF116: =AF103-AF115 -> 0 | AG116: =AG103-AG115 -> 0 | AH116: =AH103-AH115 -> 0 | AI116: =AI103-AI115 -> 0 | AJ116: =AJ103-AJ115 -> 0 | AK116: =AK103-AK115 -> 0 | AL116: =AL103-AL115 -> 0 | AM116: FluxVarDev | AN116: =K103-K115
A117: DSCR | C117: DSCRnum | D117: =DSCRNUM*RpBqDev -> 0 | E117: 0 | F117: 0 | G117: 0 | H117: 0 | I117: =DSCRNUM*RpBqDev -> 14365.778 | J117: 17203.39321 | K117: 17371.25838 | L117: 17540.71842 | M117: 7755.573777 | N117: 16029.94813 | O117: 18058.81087 | P117: 18234.79407 | Q117: 18412.44456 | R117: 8137.515949 | S117: 16825.63874 | T117: 18955.54831 | U117: 19140.01712 | V117: 19326.22837 | W117: 8537.510822 | X117: 17659.6161 | Y117: 19895.47106 | Z117: 20088.80692 | AA117: 20283.96319 | AB117: 8956.329636 | AC117: 18533.59245 | AD117: 20880.51445 | AE117: 21083.11288 | AF117: 21287.61254 | AG117: 9394.767318 | AH117: 1148.737581 | AI117: 0 | AJ117: 0 | AK117: 0 | AL117: 0 | AM117: DscrDev | AN117: =DSCRNUM*RpBqDev
C118: Repayment | D118: =PeriodDev*DscrDev/DSCRTarget -> 0 | E118: =PeriodDev*(DscrDev/DSCRTarget-E120) -> 0 | F118: =PeriodDev*(DscrDev/DSCRTarget-F120) -> 0 | G118: =PeriodDev*(DscrDev/DSCRTarget-G120) -> 0 | H118: =PeriodDev*(DscrDev/DSCRTarget-H120) -> 0 | I118: =PeriodDev*(DscrDev/DSCRTarget-I120) -> 0 | J118: =PeriodDev*(DscrDev/DSCRTarget-J120) -> 0 | K118: =PeriodDev*(DscrDev/DSCRTarget-K120) -> 9093.373923 | L118: =PeriodDev*(DscrDev/DSCRTarget-L120) -> 9388.214758 | M118: =PeriodDev*(DscrDev/DSCRTarget-M120) -> 3052.549292 | N118: =PeriodDev*(DscrDev/DSCRTarget-N120) -> 8629.849847 | O118: =PeriodDev*(DscrDev/DSCRTarget-O120) -> 10155.022 | P118: =PeriodDev*(DscrDev/DSCRTarget-P120) -> 10475.44458 | Q118: =PeriodDev*(DscrDev/DSCRTarget-Q120) -> 10803.38712 | R118: =PeriodDev*(DscrDev/DSCRTarget-R120) -> 4169.502463 | S118: =PeriodDev*(DscrDev/DSCRTarget-S120) -> 10044.97437 | T118: =PeriodDev*(DscrDev/DSCRTarget-T120) -> 11665.81358 | U118: =PeriodDev*(DscrDev/DSCRTarget-U120) -> 12022.10905 | V118: =PeriodDev*(DscrDev/DSCRTarget-V120) -> 12386.69207 | W118: =PeriodDev*(DscrDev/DSCRTarget-W120) -> 5441.947543 | X118: =PeriodDev*(DscrDev/DSCRTarget-X120) -> 11632.19001 | Y118: =PeriodDev*(DscrDev/DSCRTarget-Y120) -> 13263.64738 | Z118: =PeriodDev*(DscrDev/DSCRTarget-Z120) -> 26785.07589 | AA118: =PeriodDev*(DscrDev/DSCRTarget-AA120) -> 27045.28426 | AB118: =PeriodDev*(DscrDev/DSCRTarget-AB120) -> 11941.77285 | AC118: =PeriodDev*(DscrDev/DSCRTarget-AC120) -> 24711.45659 | AD118: =PeriodDev*(DscrDev/DSCRTarget-AD120) -> 27840.68593 | AE118: =PeriodDev*(DscrDev/DSCRTarget-AE120) -> 28110.81717 | AF118: =PeriodDev*(DscrDev/DSCRTarget-AF120) -> 28383.48339 | AG118: =PeriodDev*(DscrDev/DSCRTarget-AG120) -> 12526.35642 | AH118: =PeriodDev*(DscrDev/DSCRTarget-AH120) -> 1531.650108 | AI118: =PeriodDev*(DscrDev/DSCRTarget-AI120) -> 0 | AJ118: =PeriodDev*(DscrDev/DSCRTarget-AJ120) -> 0 | AK118: =PeriodDev*(DscrDev/DSCRTarget-AK120) -> 0 | AL118: =PeriodDev*(DscrDev/DSCRTarget-AL120) -> 0 | AM118: AmoDSDev | AN118: =PeriodDev*(DscrDev/DSCRTarget-K120)
C119: OutstandingC | D119: =D103 -> 12437.325 | E119: =MAX(D119+E103-E118,0) -> 31093.3125 | F119: =MAX(E119+F103-F118,0) -> 55967.9625 | G119: 95767.4025 | H119: 116910.855 | I119: 124373.25 | J119: 124373.25 | K119: 115279.8761 | L119: 105891.6613 | M119: 102839.112 | N119: 94209.26218 | O119: 84054.24018 | P119: 73578.7956 | Q119: 62775.40847 | R119: 58605.90601 | S119: 48560.93164 | T119: 36895.11806 | U119: 24873.00901 | V119: 12486.31694 | W119: 7044.369397 | X119: 0 | Y119: 0 | Z119: 0 | AA119: 0 | AB119: 0 | AC119: 0 | AD119: 0 | AE119: 0 | AF119: 0 | AG119: 0 | AH119: 0 | AI119: 0 | AJ119: 0 | AK119: 0 | AL119: 0 | AM119: CrdDSDev | AN119: =MAX(J119+K103-K118;0)
C120: Interest | D120: 0 | E120: =D119*RateBqDev -> 248.7465 | F120: =E119*RateBqDev -> 621.86625 | G120: =F119*RateBqDev -> 1119.35925 | H120: =G119*RateBqDev -> 1915.34805 | I120: =H119*RateBqDev -> 2338.2171 | J120: =I119*RateBqDev -> 2487.465 | K120: =J119*RateBqDev -> 2487.465 | L120: =K119*RateBqDev -> 2305.597522 | M120: =L119*RateBqDev -> 2117.833226 | N120: =M119*RateBqDev -> 2056.782241 | O120: =N119*RateBqDev -> 1884.185244 | P120: =O119*RateBqDev -> 1681.084804 | Q120: =P119*RateBqDev -> 1471.575912 | R120: =Q119*RateBqDev -> 1255.508169 | S120: =R119*RateBqDev -> 1172.11812 | T120: =S119*RateBqDev -> 971.2186328 | U120: =T119*RateBqDev -> 737.9023612 | V120: =U119*RateBqDev -> 497.4601802 | W120: =V119*RateBqDev -> 249.7263388 | X120: =W119*RateBqDev -> 140.8873879 | Y120: =X119*RateBqDev -> 0 | Z120: =Y119*RateBqDev -> 0 | AA120: =Z119*RateBqDev -> 0 | AB120: =AA119*RateBqDev -> 0 | AC120: =AB119*RateBqDev -> 0 | AD120: =AC119*RateBqDev -> 0 | AE120: =AD119*RateBqDev -> 0 | AF120: =AE119*RateBqDev -> 0 | AG120: =AF119*RateBqDev -> 0 | AH120: =AG119*RateBqDev -> 0 | AI120: =AH119*RateBqDev -> 0 | AJ120: =AI119*RateBqDev -> 0 | AK120: =AJ119*RateBqDev -> 0 | AL120: =AK119*RateBqDev -> 0 | AM120: IntDSDev | AN120: =J119*RateBqDev
C121: Installment | D121: =D118+D120 -> 0 | E121: =E118+E120 -> 248.7465 | F121: 621.86625 | G121: 1119.35925 | H121: 1915.34805 | I121: 2338.2171 | J121: 2487.465 | K121: =(J119-K119)+K120 -> 11580.83892 | L121: =(K119-L119)+L120 -> 11693.81228 | M121: 5170.382518 | N121: 10686.63209 | O121: 12039.20725 | P121: 12156.52938 | Q121: 12274.96304 | R121: 5425.010633 | S121: 11217.09249 | T121: 12637.03221 | U121: 12760.01141 | V121: 12884.15225 | W121: 5691.673881 | X121: 7185.256785 | Y121: 0 | Z121: 0 | AA121: 0 | AB121: 0 | AC121: 0 | AD121: 0 | AE121: 0 | AF121: 0 | AG121: 0 | AH121: 0 | AI121: 0 | AJ121: 0 | AK121: 0 | AL121: 0 | AM121: EchDSDev | AN121: =(J119-K119)+K120
C122: =IRR(FluxDSDev) -> 0.02 | D122: =D103-D121 -> 12437.325 | E122: =E103-E121 -> 18407.241 | F122: 24252.78375 | G122: 38680.08075 | H122: 19228.10445 | I122: 5124.1779 | J122: -2487.465 | K122: -11580.83892 | L122: -11693.81228 | M122: -5170.382518 | N122: -10686.63209 | O122: -12039.20725 | P122: -12156.52938 | Q122: -12274.96304 | R122: -5425.010633 | S122: -11217.09249 | T122: -12637.03221 | U122: -12760.01141 | V122: -12884.15225 | W122: -5691.673881 | X122: -7185.256785 | Y122: 0 | Z122: 0 | AA122: 0 | AB122: 0 | AC122: 0 | AD122: 0 | AE122: 0 | AF122: 0 | AG122: 0 | AH122: 0 | AI122: 0 | AJ122: 0 | AK122: 0 | AL122: 0 | AM122: FluxDSDev | AN122: =K103-K121
C124: UsBqExp | D124: =INDIRECT($C124) -> 7462.395 | E124: =INDIRECT($C124) -> 11193.5925 | F124: 14924.79 | G124: 23879.664 | H124: 12686.0715 | I124: 4477.437 | J124: 0 | K124: 0 | L124: 0 | M124: 0 | N124: 0 | O124: 0 | P124: 0 | Q124: 0 | R124: 0 | S124: 0 | T124: 0 | U124: 0 | V124: 0 | W124: 0 | X124: 0 | Y124: 0 | Z124: 0 | AA124: 0 | AB124: 0 | AC124: 0 | AD124: 0 | AE124: 0 | AF124: =INDIRECT($C124) -> 0 | AG124: =INDIRECT($C124) -> 0 | AH124: 0 | AI124: 0 | AJ124: 0 | AK124: 0 | AL124: 0
D125: =(Duration>DurGrace)+(Duration>DurGrace+DurExp) -> 0 | E125: 0 | F125: 0 | G125: 0 | H125: 0 | I125: 0 | J125: 0 | K125: 1 | L125: 1 | M125: 1 | N125: 1 | O125: 1 | P125: 1 | Q125: 1 | R125: 1 | S125: 1 | T125: 1 | U125: 1 | V125: 1 | W125: 2 | X125: 2 | Y125: 2 | Z125: 2 | AA125: 2 | AB125: 2 | AC125: 2 | AD125: 2 | AE125: 2 | AF125: 2 | AG125: 2 | AH125: 2 | AI125: 2 | AJ125: 2 | AK125: 2 | AL125: 2 | AM125: PeriodExp | AN125: =_xlfn.FORMULATEXT(K125) -> =(Duration>DurGrace)+(Duration>DurGrace+DurExp)
A126: DEBTEXP | D126: =D124 -> 7462.395 | E126: =D126+E124*(PeriodExp=0) -> 18655.9875 | F126: 33580.7775 | G126: 57460.4415 | H126: 70146.513 | I126: 74623.95 | J126: 74623.95 | K126: 74623.95 | L126: 74623.95 | M126: 74623.95 | N126: 74623.95 | O126: 74623.95 | P126: 74623.95 | Q126: 74623.95 | R126: 74623.95 | S126: 74623.95 | T126: 74623.95 | U126: 74623.95 | V126: 74623.95 | W126: 74623.95 | X126: 74623.95 | Y126: 74623.95 | Z126: 74623.95 | AA126: 74623.95 | AB126: 74623.95 | AC126: 74623.95 | AD126: 74623.95 | AE126: 74623.95 | AF126: 74623.95 | AG126: 74623.95 | AH126: 74623.95 | AI126: 74623.95 | AJ126: 74623.95 | AK126: 74623.95 | AL126: 74623.95 | AM126: EncBqExp | AN126: =_xlfn.FORMULATEXT(K126) -> =J126+K124*(PeriodExp=0)
A127: Linear | C127: Repayment | D127: =D126/DurExp*(PeriodExp=1) -> 0 | E127: 0 | F127: 0 | G127: 0 | H127: 0 | I127: 0 | J127: 0 | K127: 6218.6625 | L127: 6218.6625 | M127: 6218.6625 | N127: 6218.6625 | O127: 6218.6625 | P127: 6218.6625 | Q127: 6218.6625 | R127: 6218.6625 | S127: 6218.6625 | T127: 6218.6625 | U127: 6218.6625 | V127: 6218.6625 | W127: 0 | X127: 0 | Y127: 0 | Z127: 0 | AA127: 0 | AB127: 0 | AC127: 0 | AD127: 0 | AE127: 0 | AF127: 0 | AG127: 0 | AH127: 0 | AI127: 0 | AJ127: 0 | AK127: 0 | AL127: 0 | AM127: AmoLinExp | AN127: =_xlfn.FORMULATEXT(K127) -> =K126/DurExp*(PeriodExp=1)
C128: OutstandingC | D128: =D126-D127 -> 7462.395 | E128: =D128+E124-E127 -> 18655.9875 | F128: =E128+F124-F127 -> 33580.7775 | G128: =F128+G124-G127 -> 57460.4415 | H128: =G128+H124-H127 -> 70146.513 | I128: =H128+I124-I127 -> 74623.95 | J128: =I128+J124-J127 -> 74623.95 | K128: =J128+K124-K127 -> 68405.2875 | L128: =K128+L124-L127 -> 62186.625 | M128: =L128+M124-M127 -> 55967.9625 | N128: =M128+N124-N127 -> 49749.3 | O128: =N128+O124-O127 -> 43530.6375 | P128: =O128+P124-P127 -> 37311.975 | Q128: =P128+Q124-Q127 -> 31093.3125 | R128: =Q128+R124-R127 -> 24874.65 | S128: =R128+S124-S127 -> 18655.9875 | T128: =S128+T124-T127 -> 12437.325 | U128: =T128+U124-U127 -> 6218.6625 | V128: =U128+V124-V127 -> 0 | W128: =V128+W124-W127 -> 0 | X128: =W128+X124-X127 -> 0 | Y128: =X128+Y124-Y127 -> 0 | Z128: =Y128+Z124-Z127 -> 0 | AA128: =Z128+AA124-AA127 -> 0 | AB128: =AA128+AB124-AB127 -> 0 | AC128: =AB128+AC124-AC127 -> 0 | AD128: =AC128+AD124-AD127 -> 0 | AE128: =AD128+AE124-AE127 -> 0 | AF128: =AE128+AF124-AF127 -> 0 | AG128: =AF128+AG124-AG127 -> 0 | AH128: =AG128+AH124-AH127 -> 0 | AI128: =AH128+AI124-AI127 -> 0 | AJ128: =AI128+AJ124-AJ127 -> 0 | AK128: =AJ128+AK124-AK127 -> 0 | AL128: =AK128+AL124-AL127 -> 0 | AM128: CrdLinExp | AN128: =J128+K124-K127
C129: Interest | D129: 0 | E129: =D128*RateBqExp -> 447.7437 | F129: 1119.35925 | G129: 2014.84665 | H129: 3447.62649 | I129: 4208.79078 | J129: 4477.437 | K129: 4477.437 | L129: 4104.31725 | M129: 3731.1975 | N129: 3358.07775 | O129: 2984.958 | P129: 2611.83825 | Q129: 2238.7185 | R129: 1865.59875 | S129: 1492.479 | T129: 1119.35925 | U129: 746.2395 | V129: 373.11975 | W129: 0 | X129: 0 | Y129: 0 | Z129: 0 | AA129: 0 | AB129: 0 | AC129: 0 | AD129: 0 | AE129: 0 | AF129: 0 | AG129: 0 | AH129: 0 | AI129: 0 | AJ129: 0 | AK129: 0 | AL129: 0 | AM129: IntLinExp | AN129: =J128*RateBqExp
C130: Installment | D130: =D129+D127 -> 0 | E130: 447.7437 | F130: 1119.35925 | G130: 2014.84665 | H130: 3447.62649 | I130: 4208.79078 | J130: 4477.437 | K130: 10696.0995 | L130: 10322.97975 | M130: 9949.86 | N130: 9576.74025 | O130: 9203.6205 | P130: 8830.50075 | Q130: 8457.381 | R130: 8084.26125 | S130: 7711.1415 | T130: 7338.02175 | U130: 6964.902 | V130: 6591.78225 | W130: 0 | X130: 0 | Y130: 0 | Z130: 0 | AA130: 0 | AB130: 0 | AC130: 0 | AD130: 0 | AE130: 0 | AF130: 0 | AG130: 0 | AH130: 0 | AI130: 0 | AJ130: 0 | AK130: 0 | AL130: 0 | AM130: EchLinExp | AN130: =K129+K127
C131: =IRR(FluxLinExp) -> 0.06 | D131: =D124-D130 -> 7462.395 | E131: =E124-E130 -> 10745.8488 | F131: 13805.43075 | G131: 21864.81735 | H131: 9238.44501 | I131: 268.64622 | J131: -4477.437 | K131: -10696.0995 | L131: =L124-L130 -> -10322.97975 | M131: =M124-M130 -> -9949.86 | N131: -9576.74025 | O131: -9203.6205 | P131: -8830.50075 | Q131: -8457.381 | R131: -8084.26125 | S131: -7711.1415 | T131: -7338.02175 | U131: -6964.902 | V131: -6591.78225 | W131: 0 | X131: 0 | Y131: 0 | Z131: 0 | AA131: 0 | AB131: 0 | AC131: 0 | AD131: 0 | AE131: 0 | AF131: 0 | AG131: 0 | AH131: 0 | AI131: 0 | AJ131: 0 | AK131: 0 | AL131: 0 | AM131: FluxLinExp | AN131: =K124-K130
D132: =D125 -> 0 | E132: =D132+E125*(PeriodExp=1) -> 0 | F132: 0 | G132: 0 | H132: 0 | I132: 0 | J132: 0 | K132: 1 | L132: 2 | M132: 3 | N132: 4 | O132: 5 | P132: 6 | Q132: 7 | R132: 8 | S132: 9 | T132: 10 | U132: 11 | V132: 12 | W132: 12 | X132: 12 | Y132: 12 | Z132: 12 | AA132: 12 | AB132: 12 | AC132: 12 | AD132: 12 | AE132: 12 | AF132: 12 | AG132: 12 | AH132: 12 | AI132: 12 | AJ132: 12 | AK132: 12 | AL132: 12 | AM132: PeriodExpCum
A133: Constant | C133: Repayment | D133: =(PeriodDev=1)*IntVarExp/((1+RateBqExp)^(DurExp-PeriodExpCum+1)-1) -> 0 | E133: 0 | F133: 0 | G133: 0 | H133: 0 | I133: 0 | J133: 0 | K133: 4423.486077 | L133: 4688.895241 | M133: 4970.228956 | N133: 5268.442693 | O133: 5584.549255 | P133: 5919.62221 | Q133: 6274.799543 | R133: 6651.287515 | S133: 7050.364766 | T133: 7473.386652 | U133: 7921.789851 | V133: 8397.097242 | W133: 0 | X133: 0 | Y133: 0 | Z133: 0 | AA133: 0 | AB133: 0 | AC133: 0 | AD133: 0 | AE133: 0 | AF133: 0 | AG133: 0 | AH133: 0 | AI133: 0 | AJ133: 0 | AK133: 0 | AL133: 0 | AM133: AmoVarExp | AN133: =_xlfn.FORMULATEXT(K133) -> =(PeriodDev=1)*IntVarExp/((1+RateBqExp)^(DurExp-PeriodExpCum+1)-1)
C134: OutstandingC | D134: =D124 -> 7462.395 | E134: =D134+E124-E133 -> 18655.9875 | F134: =E134+F124-F133 -> 33580.7775 | G134: =F134+G124-G133 -> 57460.4415 | H134: =G134+H124-H133 -> 70146.513 | I134: =H134+I124-I133 -> 74623.95 | J134: =I134+J124-J133 -> 74623.95 | K134: =J134+K124-K133 -> 70200.46392 | L134: =K134+L124-L133 -> 65511.56868 | M134: =L134+M124-M133 -> 60541.33973 | N134: =M134+N124-N133 -> 55272.89703 | O134: =N134+O124-O133 -> 49688.34778 | P134: =O134+P124-P133 -> 43768.72557 | Q134: =P134+Q124-Q133 -> 37493.92603 | R134: =Q134+R124-R133 -> 30842.63851 | S134: =R134+S124-S133 -> 23792.27375 | T134: =S134+T124-T133 -> 16318.88709 | U134: =T134+U124-U133 -> 8397.097242 | V134: =U134+V124-V133 -> 0 | W134: =V134+W124-W133 -> 0 | X134: =W134+X124-X133 -> 0 | Y134: =X134+Y124-Y133 -> 0 | Z134: =Y134+Z124-Z133 -> 0 | AA134: =Z134+AA124-AA133 -> 0 | AB134: =AA134+AB124-AB133 -> 0 | AC134: =AB134+AC124-AC133 -> 0 | AD134: =AC134+AD124-AD133 -> 0 | AE134: =AD134+AE124-AE133 -> 0 | AF134: =AE134+AF124-AF133 -> 0 | AG134: =AF134+AG124-AG133 -> 0 | AH134: =AG134+AH124-AH133 -> 0 | AI134: =AH134+AI124-AI133 -> 0 | AJ134: =AI134+AJ124-AJ133 -> 0 | AK134: =AJ134+AK124-AK133 -> 0 | AL134: =AK134+AL124-AL133 -> 0 | AM134: CrdVarExp | AN134: =J134+K124-K133
C135: Interest | D135: 0 | E135: =D134*RateBqExp -> 447.7437 | F135: 1119.35925 | G135: 2014.84665 | H135: 3447.62649 | I135: 4208.79078 | J135: 4477.437 | K135: 4477.437 | L135: 4212.027835 | M135: 3930.694121 | N135: 3632.480384 | O135: 3316.373822 | P135: 2981.300867 | Q135: 2626.123534 | R135: 2249.635562 | S135: 1850.558311 | T135: 1427.536425 | U135: 979.1332256 | V135: 503.8258345 | W135: 0 | X135: 0 | Y135: 0 | Z135: 0 | AA135: 0 | AB135: 0 | AC135: 0 | AD135: 0 | AE135: 0 | AF135: 0 | AG135: 0 | AH135: 0 | AI135: 0 | AJ135: 0 | AK135: 0 | AL135: 0 | AM135: IntVarExp | AN135: =J134*RateBqExp
C136: Installment | D136: =D133+D135 -> 0 | E136: =E133+E135 -> 447.7437 | F136: 1119.35925 | G136: 2014.84665 | H136: 3447.62649 | I136: 4208.79078 | J136: 4477.437 | K136: =K133+K135 -> 8900.923077 | L136: =L133+L135 -> 8900.923077 | M136: 8900.923077 | N136: 8900.923077 | O136: 8900.923077 | P136: 8900.923077 | Q136: 8900.923077 | R136: 8900.923077 | S136: 8900.923077 | T136: 8900.923077 | U136: 8900.923077 | V136: 8900.923077 | W136: 0 | X136: 0 | Y136: 0 | Z136: 0 | AA136: 0 | AB136: 0 | AC136: 0 | AD136: 0 | AE136: 0 | AF136: 0 | AG136: 0 | AH136: 0 | AI136: 0 | AJ136: 0 | AK136: 0 | AL136: 0 | AM136: EchVarExp | AN136: =K133+K135
C137: =IRR(FluxVarExp) -> 0.06 | D137: =D124-D136 -> 7462.395 | E137: =E124-E136 -> 10745.8488 | F137: 13805.43075 | G137: 21864.81735 | H137: 9238.44501 | I137: 268.64622 | J137: -4477.437 | K137: -8900.923077 | L137: -8900.923077 | M137: -8900.923077 | N137: -8900.923077 | O137: -8900.923077 | P137: -8900.923077 | Q137: -8900.923077 | R137: -8900.923077 | S137: -8900.923077 | T137: -8900.923077 | U137: -8900.923077 | V137: -8900.923077 | W137: 0 | X137: 0 | Y137: 0 | Z137: 0 | AA137: 0 | AB137: 0 | AC137: 0 | AD137: 0 | AE137: 0 | AF137: 0 | AG137: 0 | AH137: 0 | AI137: 0 | AJ137: 0 | AK137: 0 | AL137: 0 | AM137: FluxVarExp | AN137: =K124-K136
A138: DSCR | C138: DSCRnum | D138: =DSCRNUM*RpBqExp -> 0 | E138: 0 | F138: 0 | G138: 0 | H138: 0 | I138: 8619.466798 | J138: 10322.03593 | K138: 10422.75503 | L138: 10524.43105 | M138: 4653.344266 | N138: 9617.968879 | O138: 10835.28652 | P138: 10940.87644 | Q138: 11047.46673 | R138: 4882.509569 | S138: 10095.38324 | T138: 11373.32899 | U138: 11484.01027 | V138: 11595.73702 | W138: 5122.506493 | X138: 10595.76966 | Y138: 11937.28264 | Z138: 12053.28415 | AA138: 12170.37792 | AB138: 5373.797782 | AC138: 11120.15547 | AD138: 12528.30867 | AE138: 12649.86773 | AF138: 12772.56752 | AG138: 5636.860391 | AH138: 689.2425488 | AI138: 0 | AJ138: 0 | AK138: 0 | AL138: 0 | AM138: DscrExp | AN138: =DSCRNUM*RpBqExp
C139: Repayment | D139: =PeriodDev*DscrDev/DSCRTarget -> 0 | E139: =PeriodExp*(DscrExp/DSCRTarget-E141) -> 0 | F139: =PeriodExp*(DscrExp/DSCRTarget-F141) -> 0 | G139: =PeriodExp*(DscrExp/DSCRTarget-G141) -> 0 | H139: =PeriodExp*(DscrExp/DSCRTarget-H141) -> 0 | I139: =PeriodExp*(DscrExp/DSCRTarget-I141) -> 0 | J139: =PeriodExp*(DscrExp/DSCRTarget-J141) -> 0 | K139: =PeriodExp*(DscrExp/DSCRTarget-K141) -> 2471.066354 | L139: =PeriodExp*(DscrExp/DSCRTarget-L141) -> 2687.114349 | M139: =PeriodExp*(DscrExp/DSCRTarget-M141) -> -1065.716647 | N139: =PeriodExp*(DscrExp/DSCRTarget-N141) -> 2180.090096 | O139: =PeriodExp*(DscrExp/DSCRTarget-O141) -> 3122.440596 | P139: =PeriodExp*(DscrExp/DSCRTarget-P141) -> 3380.180315 | Q139: =PeriodExp*(DscrExp/DSCRTarget-Q141) -> 3654.051326 | R139: =PeriodExp*(DscrExp/DSCRTarget-R141) -> -236.6770371 | S139: =PeriodExp*(DscrExp/DSCRTarget-S141) -> 3224.371457 | T139: =PeriodExp*(DscrExp/DSCRTarget-T141) -> 4269.797574 | U139: =PeriodExp*(DscrExp/DSCRTarget-U141) -> 4599.772952 | V139: =PeriodExp*(DscrExp/DSCRTarget-V141) -> 4950.24383 | W139: =PeriodExp*(DscrExp/DSCRTarget-W141) -> 1863.542877 | X139: =PeriodExp*(DscrExp/DSCRTarget-X141) -> 9384.852246 | Y139: =PeriodExp*(DscrExp/DSCRTarget-Y141) -> 12299.71849 | Z139: =PeriodExp*(DscrExp/DSCRTarget-Z141) -> 13930.35339 | AA139: =PeriodExp*(DscrExp/DSCRTarget-AA141) -> 15758.12081 | AB139: =PeriodExp*(DscrExp/DSCRTarget-AB141) -> 7165.063709 | AC139: =PeriodExp*(DscrExp/DSCRTarget-AC141) -> 14826.87396 | AD139: =PeriodExp*(DscrExp/DSCRTarget-AD141) -> 16704.41156 | AE139: =PeriodExp*(DscrExp/DSCRTarget-AE141) -> 16866.4903 | AF139: =PeriodExp*(DscrExp/DSCRTarget-AF141) -> 17030.09003 | AG139: =PeriodExp*(DscrExp/DSCRTarget-AG141) -> 7515.813854 | AH139: =PeriodExp*(DscrExp/DSCRTarget-AH141) -> 918.990065 | AI139: =PeriodExp*(DscrExp/DSCRTarget-AI141) -> 0 | AJ139: =PeriodExp*(DscrExp/DSCRTarget-AJ141) -> 0 | AK139: =PeriodExp*(DscrExp/DSCRTarget-AK141) -> 0 | AL139: =PeriodExp*(DscrExp/DSCRTarget-AL141) -> 0 | AM139: AmoDSExp | AN139: =PeriodExp*(DscrExp/DSCRTarget-K141)
C140: OutstandingC | D140: =D124 -> 7462.395 | E140: =MAX(D140+E124-E139,0) -> 18655.9875 | F140: =MAX(E140+F124-F139,0) -> 33580.7775 | G140: =MAX(F140+G124-G139,0) -> 57460.4415 | H140: =MAX(G140+H124-H139,0) -> 70146.513 | I140: =MAX(H140+I124-I139,0) -> 74623.95 | J140: =MAX(I140+J124-J139,0) -> 74623.95 | K140: =MAX(J140+K124-K139,0) -> 72152.88365 | L140: =MAX(K140+L124-L139,0) -> 69465.7693 | M140: =MAX(L140+M124-M139,0) -> 70531.48594 | N140: =MAX(M140+N124-N139,0) -> 68351.39585 | O140: =MAX(N140+O124-O139,0) -> 65228.95525 | P140: =MAX(O140+P124-P139,0) -> 61848.77494 | Q140: =MAX(P140+Q124-Q139,0) -> 58194.72361 | R140: =MAX(Q140+R124-R139,0) -> 58431.40065 | S140: =MAX(R140+S124-S139,0) -> 55207.02919 | T140: =MAX(S140+T124-T139,0) -> 50937.23162 | U140: =MAX(T140+U124-U139,0) -> 46337.45867 | V140: =MAX(U140+V124-V139,0) -> 41387.21484 | W140: =MAX(V140+W124-W139,0) -> 39523.67196 | X140: =MAX(W140+X124-X139,0) -> 30138.81971 | Y140: =MAX(X140+Y124-Y139,0) -> 17839.10123 | Z140: =MAX(Y140+Z124-Z139,0) -> 3908.747841 | AA140: =MAX(Z140+AA124-AA139,0) -> 0 | AB140: =MAX(AA140+AB124-AB139,0) -> 0 | AC140: =MAX(AB140+AC124-AC139,0) -> 0 | AD140: =MAX(AC140+AD124-AD139,0) -> 0 | AE140: =MAX(AD140+AE124-AE139,0) -> 0 | AF140: =MAX(AE140+AF124-AF139,0) -> 0 | AG140: =MAX(AF140+AG124-AG139,0) -> 0 | AH140: =MAX(AG140+AH124-AH139,0) -> 0 | AI140: =MAX(AH140+AI124-AI139,0) -> 0 | AJ140: =MAX(AI140+AJ124-AJ139,0) -> 0 | AK140: =MAX(AJ140+AK124-AK139,0) -> 0 | AL140: =MAX(AK140+AL124-AL139,0) -> 0 | AM140: CrdDSExp | AN140: =MAX(J140+K124-K139;0)
C141: Interest | D141: 0 | E141: =D140*RateBqExp -> 447.7437 | F141: 1119.35925 | G141: 2014.84665 | H141: 3447.62649 | I141: 4208.79078 | J141: 4477.437 | K141: 4477.437 | L141: 4329.173019 | M141: 4167.946158 | N141: 4231.889157 | O141: 4101.083751 | P141: 3913.737315 | Q141: 3710.926496 | R141: 3491.683417 | S141: 3505.884039 | T141: 3312.421752 | U141: 3056.233897 | V141: 2780.24752 | W141: 2483.23289 | X141: 2371.420318 | Y141: 1808.329183 | Z141: 1070.346074 | AA141: 234.5248704 | AB141: 0 | AC141: 0 | AD141: 0 | AE141: 0 | AF141: 0 | AG141: 0 | AH141: 0 | AI141: 0 | AJ141: 0 | AK141: 0 | AL141: 0 | AM141: IntDSExp | AN141: =J140*RateBqExp
C142: Installment | D142: =D139+D141 -> 0 | E142: =E139+E141 -> 447.7437 | F142: 1119.35925 | G142: 2014.84665 | H142: 3447.62649 | I142: 4208.79078 | J142: 4477.437 | K142: =(J140-K140)+K141 -> 6948.503354 | L142: =(K140-L140)+L141 -> 7016.287367 | M142: =(L140-M140)+M141 -> 3102.229511 | N142: =(M140-N140)+N141 -> 6411.979253 | O142: =(N140-O140)+O141 -> 7223.524347 | P142: =(O140-P140)+P141 -> 7293.91763 | Q142: =(P140-Q140)+Q141 -> 7364.977822 | R142: =(Q140-R140)+R141 -> 3255.00638 | S142: =(R140-S140)+S141 -> 6730.255496 | T142: =(S140-T140)+T141 -> 7582.219326 | U142: =(T140-U140)+U141 -> 7656.006849 | V142: =(U140-V140)+V141 -> 7730.49135 | W142: =(V140-W140)+W141 -> 4346.775767 | X142: =(W140-X140)+X141 -> 11756.27256 | Y142: =(X140-Y140)+Y141 -> 14108.04767 | Z142: =(Y140-Z140)+Z141 -> 15000.69946 | AA142: =(Z140-AA140)+AA141 -> 4143.272711 | AB142: =(AA140-AB140)+AB141 -> 0 | AC142: =(AB140-AC140)+AC141 -> 0 | AD142: =(AC140-AD140)+AD141 -> 0 | AE142: =(AD140-AE140)+AE141 -> 0 | AF142: =(AE140-AF140)+AF141 -> 0 | AG142: =(AF140-AG140)+AG141 -> 0 | AH142: =(AG140-AH140)+AH141 -> 0 | AI142: =(AH140-AI140)+AI141 -> 0 | AJ142: =(AI140-AJ140)+AJ141 -> 0 | AK142: =(AJ140-AK140)+AK141 -> 0 | AL142: =(AK140-AL140)+AL141 -> 0 | AM142: EchDSExp | AN142: =(J140-K140)+K141
C143: =IRR(FluxDSExp) -> 0.06 | D143: =D124-D142 -> 7462.395 | E143: =E124-E142 -> 10745.8488 | F143: =F124-F142 -> 13805.43075 | G143: =G124-G142 -> 21864.81735 | H143: =H124-H142 -> 9238.44501 | I143: =I124-I142 -> 268.64622 | J143: =J124-J142 -> -4477.437 | K143: =K124-K142 -> -6948.503354 | L143: =L124-L142 -> -7016.287367 | M143: =M124-M142 -> -3102.229511 | N143: =N124-N142 -> -6411.979253 | O143: =O124-O142 -> -7223.524347 | P143: =P124-P142 -> -7293.91763 | Q143: =Q124-Q142 -> -7364.977822 | R143: =R124-R142 -> -3255.00638 | S143: =S124-S142 -> -6730.255496 | T143: =T124-T142 -> -7582.219326 | U143: =U124-U142 -> -7656.006849 | V143: =V124-V142 -> -7730.49135 | W143: =W124-W142 -> -4346.775767 | X143: =X124-X142 -> -11756.27256 | Y143: =Y124-Y142 -> -14108.04767 | Z143: =Z124-Z142 -> -15000.69946 | AA143: =AA124-AA142 -> -4143.272711 | AB143: =AB124-AB142 -> 0 | AC143: =AC124-AC142 -> 0 | AD143: =AD124-AD142 -> 0 | AE143: =AE124-AE142 -> 0 | AF143: =AF124-AF142 -> 0 | AG143: =AG124-AG142 -> 0 | AH143: =AH124-AH142 -> 0 | AI143: =AI124-AI142 -> 0 | AJ143: =AJ124-AJ142 -> 0 | AK143: =AK124-AK142 -> 0 | AL143: =AL124-AL142 -> 0 | AM143: FluxDSExp | AN143: =K124-K142
C145: UsBqCom | D145: =INDIRECT($C145) -> 4974.93 | E145: =INDIRECT($C145) -> 7462.395 | F145: 9949.86 | G145: 15919.776 | H145: 8457.381 | I145: 2984.958 | J145: 0 | K145: 0 | L145: 0 | M145: 0 | N145: 0 | O145: 0 | P145: 0 | Q145: 0 | R145: 0 | S145: 0 | T145: 0 | U145: 0 | V145: 0 | W145: 0 | X145: 0 | Y145: 0 | Z145: 0 | AA145: 0 | AB145: 0 | AC145: 0 | AD145: 0 | AE145: 0 | AF145: =INDIRECT($C145) -> 0 | AG145: =INDIRECT($C145) -> 0 | AH145: 0 | AI145: 0 | AJ145: 0 | AK145: 0 | AL145: 0
D146: =(Duration>DurGrace)+(Duration>DurGrace+DurDev) -> 0 | E146: =(Duration>DurGrace)+(Duration>DurGrace+DurCom) -> 0 | F146: 0 | G146: 0 | H146: 0 | I146: 0 | J146: 0 | K146: 1 | L146: 1 | M146: 1 | N146: 1 | O146: 1 | P146: 1 | Q146: 1 | R146: 2 | S146: 2 | T146: 2 | U146: 2 | V146: 2 | W146: 2 | X146: 2 | Y146: 2 | Z146: 2 | AA146: 2 | AB146: 2 | AC146: 2 | AD146: 2 | AE146: 2 | AF146: 2 | AG146: 2 | AH146: 2 | AI146: 2 | AJ146: 2 | AK146: 2 | AL146: 2 | AM146: PeriodCom | AN146: =_xlfn.FORMULATEXT(K146) -> =(Duration>DurGrace)+(Duration>DurGrace+DurCom)
A147: DEBTCOM | D147: =D145 -> 4974.93 | E147: =D147+E145*(PeriodCom=0) -> 12437.325 | F147: 22387.185 | G147: 38306.961 | H147: 46764.342 | I147: 49749.3 | J147: 49749.3 | K147: 49749.3 | L147: 49749.3 | M147: 49749.3 | N147: 49749.3 | O147: 49749.3 | P147: 49749.3 | Q147: 49749.3 | R147: 49749.3 | S147: 49749.3 | T147: 49749.3 | U147: 49749.3 | V147: 49749.3 | W147: 49749.3 | X147: 49749.3 | Y147: 49749.3 | Z147: 49749.3 | AA147: 49749.3 | AB147: 49749.3 | AC147: 49749.3 | AD147: 49749.3 | AE147: 49749.3 | AF147: 49749.3 | AG147: 49749.3 | AH147: 49749.3 | AI147: 49749.3 | AJ147: 49749.3 | AK147: 49749.3 | AL147: 49749.3 | AM147: EncBqCom | AN147: =_xlfn.FORMULATEXT(K147) -> =J147+K145*(PeriodCom=0)
A148: Linear | C148: Repayment | D148: =D147/DurDev*(PeriodDev=1) -> 0 | E148: =E147/DurCom*(PeriodCom=1) -> 0 | F148: 0 | G148: 0 | H148: 0 | I148: 0 | J148: 0 | K148: 7107.042857 | L148: 7107.042857 | M148: 7107.042857 | N148: 7107.042857 | O148: 7107.042857 | P148: 7107.042857 | Q148: 7107.042857 | R148: 0 | S148: 0 | T148: 0 | U148: 0 | V148: 0 | W148: 0 | X148: 0 | Y148: 0 | Z148: 0 | AA148: 0 | AB148: 0 | AC148: 0 | AD148: 0 | AE148: 0 | AF148: 0 | AG148: 0 | AH148: 0 | AI148: 0 | AJ148: 0 | AK148: 0 | AL148: 0 | AM148: AmoLinCom | AN148: =_xlfn.FORMULATEXT(K148) -> =K147/DurCom*(PeriodCom=1)
C149: OutstandingC | D149: =D147-D148 -> 4974.93 | E149: =D149+E145-E148 -> 12437.325 | F149: =E149+F145-F148 -> 22387.185 | G149: 38306.961 | H149: 46764.342 | I149: 49749.3 | J149: 49749.3 | K149: 42642.25714 | L149: 35535.21429 | M149: 28428.17143 | N149: 21321.12857 | O149: 14214.08571 | P149: 7107.042857 | Q149: 0 | R149: 0 | S149: 0 | T149: 0 | U149: 0 | V149: 0 | W149: 0 | X149: 0 | Y149: 0 | Z149: 0 | AA149: 0 | AB149: 0 | AC149: 0 | AD149: 0 | AE149: 0 | AF149: 0 | AG149: 0 | AH149: 0 | AI149: 0 | AJ149: 0 | AK149: 0 | AL149: 0 | AM149: CrdLinCom | AN149: =J149+K145-K148
C150: Interest | D150: 0 | E150: =D149*RateBqCom -> 348.2451 | F150: 870.61275 | G150: 1567.10295 | H150: 2681.48727 | I150: 3273.50394 | J150: 3482.451 | K150: 3482.451 | L150: 2984.958 | M150: 2487.465 | N150: 1989.972 | O150: 1492.479 | P150: 994.986 | Q150: 497.493 | R150: 0 | S150: 0 | T150: 0 | U150: 0 | V150: 0 | W150: 0 | X150: 0 | Y150: 0 | Z150: 0 | AA150: 0 | AB150: 0 | AC150: 0 | AD150: 0 | AE150: 0 | AF150: 0 | AG150: 0 | AH150: 0 | AI150: 0 | AJ150: 0 | AK150: 0 | AL150: 0 | AM150: IntLinCom | AN150: =J149*RateBqCom
C151: Installment | D151: =D150+D148 -> 0 | E151: 348.2451 | F151: =F150+F148 -> 870.61275 | G151: 1567.10295 | H151: 2681.48727 | I151: 3273.50394 | J151: 3482.451 | K151: 10589.49386 | L151: 10092.00086 | M151: 9594.507857 | N151: 9097.014857 | O151: 8599.521857 | P151: 8102.028857 | Q151: 7604.535857 | R151: 0 | S151: 0 | T151: 0 | U151: 0 | V151: 0 | W151: 0 | X151: 0 | Y151: 0 | Z151: 0 | AA151: 0 | AB151: 0 | AC151: 0 | AD151: 0 | AE151: 0 | AF151: 0 | AG151: 0 | AH151: 0 | AI151: 0 | AJ151: 0 | AK151: 0 | AL151: 0 | AM151: EchLinCom | AN151: =K150+K148
C152: =IRR(FluxLinCom) -> 0.07 | D152: =D145-D151 -> 4974.93 | E152: =E145-E151 -> 7114.1499 | F152: =F145-F151 -> 9079.24725 | G152: 14352.67305 | H152: 5775.89373 | I152: -288.54594 | J152: -3482.451 | K152: -10589.49386 | L152: -10092.00086 | M152: -9594.507857 | N152: -9097.014857 | O152: -8599.521857 | P152: -8102.028857 | Q152: -7604.535857 | R152: 0 | S152: 0 | T152: 0 | U152: 0 | V152: 0 | W152: 0 | X152: 0 | Y152: 0 | Z152: 0 | AA152: 0 | AB152: 0 | AC152: 0 | AD152: 0 | AE152: 0 | AF152: 0 | AG152: 0 | AH152: 0 | AI152: 0 | AJ152: 0 | AK152: 0 | AL152: 0 | AM152: FluxLinCom | AN152: =K145-K151
D153: =D146 -> 0 | E153: =D153+E146*(PeriodCom=1) -> 0 | F153: 0 | G153: 0 | H153: 0 | I153: 0 | J153: 0 | K153: 1 | L153: 2 | M153: 3 | N153: 4 | O153: 5 | P153: 6 | Q153: 7 | R153: 7 | S153: 7 | T153: 7 | U153: 7 | V153: 7 | W153: 7 | X153: 7 | Y153: 7 | Z153: 7 | AA153: 7 | AB153: 7 | AC153: 7 | AD153: 7 | AE153: 7 | AF153: 7 | AG153: 7 | AH153: 7 | AI153: 7 | AJ153: 7 | AK153: 7 | AL153: 7 | AM153: PeriodComCum
A154: Constant | C154: Repayment | D154: =(PeriodCom=1)*IntVarCom/((1+RateBqCom)^(DurCom-PeriodComCum+1)-1) -> 0 | E154: 0 | F154: 0 | G154: 0 | H154: 0 | I154: 0 | J154: 0 | K154: 5748.691789 | L154: 6151.100215 | M154: 6581.67723 | N154: 7042.394636 | O154: 7535.36226 | P154: 8062.837618 | Q154: 8627.236252 | R154: 0 | S154: 0 | T154: 0 | U154: 0 | V154: 0 | W154: 0 | X154: 0 | Y154: 0 | Z154: 0 | AA154: 0 | AB154: 0 | AC154: 0 | AD154: 0 | AE154: 0 | AF154: 0 | AG154: 0 | AH154: 0 | AI154: 0 | AJ154: 0 | AK154: 0 | AL154: 0 | AM154: AmoVarCom | AN154: =_xlfn.FORMULATEXT(K154) -> =(PeriodCom=1)*IntVarCom/((1+RateBqCom)^(DurCom-PeriodComCum+1)-1)
C155: OutstandingC | D155: =D145 -> 4974.93 | E155: =D155+E145-E154 -> 12437.325 | F155: =E155+F145-F154 -> 22387.185 | G155: =F155+G145-G154 -> 38306.961 | H155: =G155+H145-H154 -> 46764.342 | I155: =H155+I145-I154 -> 49749.3 | J155: =I155+J145-J154 -> 49749.3 | K155: =J155+K145-K154 -> 44000.60821 | L155: =K155+L145-L154 -> 37849.508 | M155: =L155+M145-M154 -> 31267.83077 | N155: =M155+N145-N154 -> 24225.43613 | O155: =N155+O145-O154 -> 16690.07387 | P155: =O155+P145-P154 -> 8627.236252 | Q155: =P155+Q145-Q154 -> 0 | R155: =Q155+R145-R154 -> 0 | S155: =R155+S145-S154 -> 0 | T155: =S155+T145-T154 -> 0 | U155: =T155+U145-U154 -> 0 | V155: =U155+V145-V154 -> 0 | W155: =V155+W145-W154 -> 0 | X155: =W155+X145-X154 -> 0 | Y155: =X155+Y145-Y154 -> 0 | Z155: =Y155+Z145-Z154 -> 0 | AA155: =Z155+AA145-AA154 -> 0 | AB155: =AA155+AB145-AB154 -> 0 | AC155: =AB155+AC145-AC154 -> 0 | AD155: =AC155+AD145-AD154 -> 0 | AE155: =AD155+AE145-AE154 -> 0 | AF155: =AE155+AF145-AF154 -> 0 | AG155: =AF155+AG145-AG154 -> 0 | AH155: =AG155+AH145-AH154 -> 0 | AI155: =AH155+AI145-AI154 -> 0 | AJ155: =AI155+AJ145-AJ154 -> 0 | AK155: =AJ155+AK145-AK154 -> 0 | AL155: =AK155+AL145-AL154 -> 0 | AM155: CrdVarCom | AN155: =J155+K145-K154
C156: Interest | D156: 0 | E156: =D155*RateBqCom -> 348.2451 | F156: 870.61275 | G156: 1567.10295 | H156: 2681.48727 | I156: 3273.50394 | J156: 3482.451 | K156: 3482.451 | L156: 3080.042575 | M156: 2649.46556 | N156: 2188.748154 | O156: 1695.780529 | P156: 1168.305171 | Q156: 603.9065376 | R156: 0 | S156: 0 | T156: 0 | U156: 0 | V156: 0 | W156: 0 | X156: 0 | Y156: 0 | Z156: 0 | AA156: 0 | AB156: 0 | AC156: 0 | AD156: 0 | AE156: 0 | AF156: 0 | AG156: 0 | AH156: 0 | AI156: 0 | AJ156: 0 | AK156: 0 | AL156: 0 | AM156: IntVarCom | AN156: =J155*RateBqCom
C157: Installment | D157: =D154+D156 -> 0 | E157: =E154+E156 -> 348.2451 | F157: =F154+F156 -> 870.61275 | G157: 1567.10295 | H157: 2681.48727 | I157: 3273.50394 | J157: 3482.451 | K157: 9231.142789 | L157: 9231.142789 | M157: 9231.142789 | N157: 9231.142789 | O157: 9231.142789 | P157: 9231.142789 | Q157: 9231.142789 | R157: 0 | S157: 0 | T157: 0 | U157: 0 | V157: 0 | W157: 0 | X157: 0 | Y157: 0 | Z157: 0 | AA157: 0 | AB157: 0 | AC157: 0 | AD157: 0 | AE157: 0 | AF157: 0 | AG157: 0 | AH157: 0 | AI157: 0 | AJ157: 0 | AK157: 0 | AL157: 0 | AM157: EchVarCom | AN157: =K154+K156
C158: =IRR(FluxVarCom) -> 0.07 | D158: =D145-D157 -> 4974.93 | E158: =E145-E157 -> 7114.1499 | F158: =F145-F157 -> 9079.24725 | G158: 14352.67305 | H158: 5775.89373 | I158: -288.54594 | J158: -3482.451 | K158: -9231.142789 | L158: -9231.142789 | M158: -9231.142789 | N158: -9231.142789 | O158: -9231.142789 | P158: -9231.142789 | Q158: -9231.142789 | R158: 0 | S158: 0 | T158: 0 | U158: 0 | V158: 0 | W158: 0 | X158: 0 | Y158: 0 | Z158: 0 | AA158: 0 | AB158: 0 | AC158: 0 | AD158: 0 | AE158: 0 | AF158: 0 | AG158: 0 | AH158: 0 | AI158: 0 | AJ158: 0 | AK158: 0 | AL158: 0 | AM158: FluxVarCom | AN158: =K145-K157
A159: DSCR | C159: DSCRnum | D159: =DSCRNUM*RpBqCom -> 0 | E159: =DSCRNUM*RpBqDev -> 0 | F159: 0 | G159: 0 | H159: 0 | I159: 14365.778 | J159: 17203.39321 | K159: 17371.25838 | L159: 17540.71842 | M159: 7755.573777 | N159: 16029.94813 | O159: 18058.81087 | P159: 18234.79407 | Q159: 18412.44456 | R159: 8137.515949 | S159: 16825.63874 | T159: 18955.54831 | U159: 19140.01712 | V159: 19326.22837 | W159: 8537.510822 | X159: 17659.6161 | Y159: 19895.47106 | Z159: 20088.80692 | AA159: 20283.96319 | AB159: 8956.329636 | AC159: 18533.59245 | AD159: 20880.51445 | AE159: 21083.11288 | AF159: 21287.61254 | AG159: 9394.767318 | AH159: 1148.737581 | AI159: 0 | AJ159: 0 | AK159: 0 | AL159: 0 | AM159: DscrCom | AN159: =DSCRNUM*RpBqDev
C160: Repayment | D160: =PeriodDev*DscrDev/DSCRTarget -> 0 | E160: =PeriodCom*(DscrCom/DSCRTarget-E162) -> 0 | F160: =PeriodCom*(DscrCom/DSCRTarget-F162) -> 0 | G160: =PeriodCom*(DscrCom/DSCRTarget-G162) -> 0 | H160: =PeriodCom*(DscrCom/DSCRTarget-H162) -> 0 | I160: =PeriodCom*(DscrCom/DSCRTarget-I162) -> 0 | J160: =PeriodCom*(DscrCom/DSCRTarget-J162) -> 0 | K160: =PeriodCom*(DscrCom/DSCRTarget-K162) -> 8098.387923 | L160: =PeriodCom*(DscrCom/DSCRTarget-L162) -> 8778.248434 | M160: =PeriodCom*(DscrCom/DSCRTarget-M162) -> 2869.296063 | N160: =PeriodCom*(DscrCom/DSCRTarget-N162) -> 8586.396357 | O160: =PeriodCom*(DscrCom/DSCRTarget-O162) -> 10540.01926 | P160: =PeriodCom*(DscrCom/DSCRTarget-P162) -> 11395.14275 | Q160: =PeriodCom*(DscrCom/DSCRTarget-Q162) -> 12274.96304 | R160: =PeriodCom*(DscrCom/DSCRTarget-R162) -> 10850.02127 | S160: =PeriodCom*(DscrCom/DSCRTarget-S162) -> 22434.18499 | T160: =PeriodCom*(DscrCom/DSCRTarget-T162) -> 25274.06442 | U160: =PeriodCom*(DscrCom/DSCRTarget-U162) -> 25520.02283 | V160: =PeriodCom*(DscrCom/DSCRTarget-V162) -> 25768.3045 | W160: =PeriodCom*(DscrCom/DSCRTarget-W162) -> 11383.34776 | X160: =PeriodCom*(DscrCom/DSCRTarget-X162) -> 23546.1548 | Y160: =PeriodCom*(DscrCom/DSCRTarget-Y162) -> 26527.29475 | Z160: =PeriodCom*(DscrCom/DSCRTarget-Z162) -> 26785.07589 | AA160: =PeriodCom*(DscrCom/DSCRTarget-AA162) -> 27045.28426 | AB160: =PeriodCom*(DscrCom/DSCRTarget-AB162) -> 11941.77285 | AC160: =PeriodCom*(DscrCom/DSCRTarget-AC162) -> 24711.45659 | AD160: =PeriodCom*(DscrCom/DSCRTarget-AD162) -> 27840.68593 | AE160: =PeriodCom*(DscrCom/DSCRTarget-AE162) -> 28110.81717 | AF160: =PeriodCom*(DscrCom/DSCRTarget-AF162) -> 28383.48339 | AG160: =PeriodCom*(DscrCom/DSCRTarget-AG162) -> 12526.35642 | AH160: =PeriodCom*(DscrCom/DSCRTarget-AH162) -> 1531.650108 | AI160: =PeriodCom*(DscrCom/DSCRTarget-AI162) -> 0 | AJ160: =PeriodCom*(DscrCom/DSCRTarget-AJ162) -> 0 | AK160: =PeriodCom*(DscrCom/DSCRTarget-AK162) -> 0 | AL160: =PeriodCom*(DscrCom/DSCRTarget-AL162) -> 0 | AM160: AmoDSCom | AN160: =PeriodCom*(DscrCom/DSCRTarget-K162)
C161: OutstandingC | D161: =D145 -> 4974.93 | E161: =MAX(D161+E145-E160,0) -> 12437.325 | F161: =MAX(E161+F145-F160,0) -> 22387.185 | G161: =MAX(F161+G145-G160,0) -> 38306.961 | H161: =MAX(G161+H145-H160,0) -> 46764.342 | I161: =MAX(H161+I145-I160,0) -> 49749.3 | J161: =MAX(I161+J145-J160,0) -> 49749.3 | K161: =MAX(J161+K145-K160,0) -> 41650.91208 | L161: =MAX(K161+L145-L160,0) -> 32872.66364 | M161: =MAX(L161+M145-M160,0) -> 30003.36758 | N161: =MAX(M161+N145-N160,0) -> 21416.97122 | O161: =MAX(N161+O145-O160,0) -> 10876.95196 | P161: =MAX(O161+P145-P160,0) -> 0 | Q161: =MAX(P161+Q145-Q160,0) -> 0 | R161: =MAX(Q161+R145-R160,0) -> 0 | S161: =MAX(R161+S145-S160,0) -> 0 | T161: =MAX(S161+T145-T160,0) -> 0 | U161: =MAX(T161+U145-U160,0) -> 0 | V161: =MAX(U161+V145-V160,0) -> 0 | W161: =MAX(V161+W145-W160,0) -> 0 | X161: =MAX(W161+X145-X160,0) -> 0 | Y161: =MAX(X161+Y145-Y160,0) -> 0 | Z161: =MAX(Y161+Z145-Z160,0) -> 0 | AA161: =MAX(Z161+AA145-AA160,0) -> 0 | AB161: =MAX(AA161+AB145-AB160,0) -> 0 | AC161: =MAX(AB161+AC145-AC160,0) -> 0 | AD161: =MAX(AC161+AD145-AD160,0) -> 0 | AE161: =MAX(AD161+AE145-AE160,0) -> 0 | AF161: =MAX(AE161+AF145-AF160,0) -> 0 | AG161: =MAX(AF161+AG145-AG160,0) -> 0 | AH161: =MAX(AG161+AH145-AH160,0) -> 0 | AI161: =MAX(AH161+AI145-AI160,0) -> 0 | AJ161: =MAX(AI161+AJ145-AJ160,0) -> 0 | AK161: =MAX(AJ161+AK145-AK160,0) -> 0 | AL161: =MAX(AK161+AL145-AL160,0) -> 0 | AM161: CrdDSCom | AN161: =MAX(J161+K145-K160;0)
C162: Interest | D162: 0 | E162: =D161*RateBqCom -> 348.2451 | F162: 870.61275 | G162: 1567.10295 | H162: 2681.48727 | I162: 3273.50394 | J162: 3482.451 | K162: 3482.451 | L162: 2915.563845 | M162: 2301.086455 | N162: 2100.235731 | O162: 1499.187986 | P162: 761.3866374 | Q162: 0 | R162: 0 | S162: 0 | T162: 0 | U162: 0 | V162: 0 | W162: 0 | X162: 0 | Y162: 0 | Z162: 0 | AA162: 0 | AB162: 0 | AC162: 0 | AD162: 0 | AE162: 0 | AF162: 0 | AG162: 0 | AH162: 0 | AI162: 0 | AJ162: 0 | AK162: 0 | AL162: 0 | AM162: IntDSCom | AN162: =J161*RateBqCom
C163: Installment | D163: =D160+D162 -> 0 | E163: =E160+E162 -> 348.2451 | F163: 870.61275 | G163: 1567.10295 | H163: 2681.48727 | I163: 3273.50394 | J163: 3482.451 | K163: =(J161-K161)+K162 -> 11580.83892 | L163: =(K161-L161)+L162 -> 11693.81228 | M163: =(L161-M161)+M162 -> 5170.382518 | N163: =(M161-N161)+N162 -> 10686.63209 | O163: =(N161-O161)+O162 -> 12039.20725 | P163: =(O161-P161)+P162 -> 11638.3386 | Q163: =(P161-Q161)+Q162 -> 0 | R163: =(Q161-R161)+R162 -> 0 | S163: =(R161-S161)+S162 -> 0 | T163: =(S161-T161)+T162 -> 0 | U163: =(T161-U161)+U162 -> 0 | V163: =(U161-V161)+V162 -> 0 | W163: =(V161-W161)+W162 -> 0 | X163: =(W161-X161)+X162 -> 0 | Y163: =(X161-Y161)+Y162 -> 0 | Z163: =(Y161-Z161)+Z162 -> 0 | AA163: =(Z161-AA161)+AA162 -> 0 | AB163: =(AA161-AB161)+AB162 -> 0 | AC163: =(AB161-AC161)+AC162 -> 0 | AD163: =(AC161-AD161)+AD162 -> 0 | AE163: =(AD161-AE161)+AE162 -> 0 | AF163: =(AE161-AF161)+AF162 -> 0 | AG163: =(AF161-AG161)+AG162 -> 0 | AH163: =(AG161-AH161)+AH162 -> 0 | AI163: =(AH161-AI161)+AI162 -> 0 | AJ163: =(AI161-AJ161)+AJ162 -> 0 | AK163: =(AJ161-AK161)+AK162 -> 0 | AL163: =(AK161-AL161)+AL162 -> 0 | AM163: EchDSCom | AN163: =(J161-K161)+K162
C164: =IRR(FluxDSCom) -> 0.07 | D164: =D145-D163 -> 4974.93 | E164: =E145-E163 -> 7114.1499 | F164: =F145-F163 -> 9079.24725 | G164: =G145-G163 -> 14352.67305 | H164: =H145-H163 -> 5775.89373 | I164: =I145-I163 -> -288.54594 | J164: =J145-J163 -> -3482.451 | K164: =K145-K163 -> -11580.83892 | L164: =L145-L163 -> -11693.81228 | M164: =M145-M163 -> -5170.382518 | N164: =N145-N163 -> -10686.63209 | O164: =O145-O163 -> -12039.20725 | P164: =P145-P163 -> -11638.3386 | Q164: =Q145-Q163 -> 0 | R164: =R145-R163 -> 0 | S164: =S145-S163 -> 0 | T164: =T145-T163 -> 0 | U164: =U145-U163 -> 0 | V164: =V145-V163 -> 0 | W164: =W145-W163 -> 0 | X164: =X145-X163 -> 0 | Y164: =Y145-Y163 -> 0 | Z164: =Z145-Z163 -> 0 | AA164: =AA145-AA163 -> 0 | AB164: =AB145-AB163 -> 0 | AC164: =AC145-AC163 -> 0 | AD164: =AD145-AD163 -> 0 | AE164: =AE145-AE163 -> 0 | AF164: =AF145-AF163 -> 0 | AG164: =AG145-AG163 -> 0 | AH164: =AH145-AH163 -> 0 | AI164: =AI145-AI163 -> 0 | AJ164: =AJ145-AJ163 -> 0 | AK164: =AK145-AK163 -> 0 | AL164: =AL145-AL163 -> 0 | AM164: FluxDSCom | AN164: =K145-K163
A165: Interest | C165: =SUM(IntLT) -> -103625.7555 | D165: =-IF(AmoDev=1,IntLinDev,0)-IF(AmoDev=2,IntVarDev,0)-IF(AmoDev=3,IntDSDev,0)-IF(AmoExp=1,IntLinExp,0)-IF(AmoExp=2,IntVarExp,0)-IF(AmoExp=3,IntDSExp,0)-IF(AmoCom=1,IntLinCom,0)-IF(AmoCom=2,IntVarCom,0)-IF(AmoCom=3,IntDSCom,0) -> 0 | E165: -1044.7353 | F165: =-IF(AmoDev=1,IntLinDev,0)-IF(AmoDev=2,IntVarDev,0)-IF(AmoDev=3,IntDSDev,0)-IF(AmoExp=1,IntLinExp,0)-IF(AmoExp=2,IntVarExp,0)-IF(AmoExp=3,IntDSExp,0)-IF(AmoCom=1,IntLinCom,0)-IF(AmoCom=2,IntVarCom,0)-IF(AmoCom=3,IntDSCom,0) -> -2611.83825 | G165: -4701.30885 | H165: -8044.46181 | I165: =-IF(AmoDev=1,IntLinDev,0)-IF(AmoDev=2,IntVarDev,0)-IF(AmoDev=3,IntDSDev,0)-IF(AmoExp=1,IntLinExp,0)-IF(AmoExp=2,IntVarExp,0)-IF(AmoExp=3,IntDSExp,0)-IF(AmoCom=1,IntLinCom,0)-IF(AmoCom=2,IntVarCom,0)-IF(AmoCom=3,IntDSCom,0) -> -9820.51182 | J165: -10447.353 | K165: -10447.353 | L165: -9613.70441 | M165: -8735.962681 | N165: -7811.200537 | O165: -6836.295351 | P165: -5807.916038 | Q165: -4722.509072 | R165: -3576.283562 | S165: -3011.375311 | T165: -2422.522425 | U165: -1808.288226 | V165: -1167.149835 | W165: -497.493 | X165: -331.662 | Y165: -165.831 | Z165: 5.820766091e-13 | AA165: 5.820766091e-13 | AB165: 5.820766091e-13 | AC165: 5.820766091e-13 | AD165: 5.820766091e-13 | AE165: 5.820766091e-13 | AF165: 5.820766091e-13 | AG165: 5.820766091e-13 | AH165: 5.820766091e-13 | AI165: 5.820766091e-13 | AJ165: 5.820766091e-13 | AK165: 5.820766091e-13 | AL165: 5.820766091e-13 | AM165: IntLT | AN165: =FORM(K165) ->  | AO165: =SUM(IntLT) -> -103625.7555
A166: Amortization | D166: =-IF(AmoDev=1,AmoLinDev,0)-IF(AmoDev=2,AmoVarDev,0)-IF(AmoDev=3,AmoDSDev,0)-IF(AmoExp=1,AmoLinExp,0)-IF(AmoExp=2,AmoVarExp,0)-IF(AmoExp=3,AmoDSExp,0)-IF(AmoCom=1,AmoLinCom,0)-IF(AmoCom=2,AmoVarCom,0)-IF(AmoCom=3,AmoDSCom,0) -> 0 | E166: 0 | F166: 0 | G166: 0 | H166: 0 | I166: 0 | J166: 0 | K166: -18463.72787 | L166: -19131.54546 | M166: -19843.45619 | N166: -20602.38733 | O166: -21411.46151 | P166: -22274.00983 | Q166: -23193.58579 | R166: -14942.83752 | S166: -15341.91477 | T166: -15764.93665 | U166: -16213.33985 | V166: -16688.64724 | W166: -8291.55 | X166: -8291.55 | Y166: -8291.55 | Z166: 0 | AA166: 0 | AB166: 0 | AC166: 0 | AD166: 0 | AE166: 0 | AF166: 0 | AG166: 0 | AH166: 0 | AI166: 0 | AJ166: 0 | AK166: 0 | AL166: 0 | AM166: AmoLT | AN166: =FORM(K166) ->  | AO166: =SUM(AmoLT) -> -248746.5
A167: Outstanding | D167: =IF(AmoDev=1,CrdLinDev)+IF(AmoDev=2,CrdVarDev,0)+IF(AmoDev=3,CrdDSDev,0)+IF(AmoExp=1,CrdLinExp,0)+IF(AmoExp=2,CrdVarExp,0)+IF(AmoExp=3,CrdDSExp,0)+IF(AmoCom=1,CrdLinCom,0)+IF(AmoCom=2,CrdVarCom,0)+IF(AmoCom=3,CrdDSCom,0) -> 24874.65 | E167: 62186.625 | F167: 111935.925 | G167: 191534.805 | H167: 233821.71 | I167: 248746.5 | J167: 248746.5 | K167: 230282.7721 | L167: 211151.2267 | M167: 191307.7705 | N167: 170705.3832 | O167: 149293.9216 | P167: 127019.9118 | Q167: 103826.326 | R167: 88883.48851 | S167: 73541.57375 | T167: 57776.63709 | U167: 41563.29724 | V167: 24874.65 | W167: 16583.1 | X167: 8291.55 | Y167: -2.910383046e-11 | Z167: -2.910383046e-11 | AA167: -2.910383046e-11 | AB167: -2.910383046e-11 | AC167: -2.910383046e-11 | AD167: -2.910383046e-11 | AE167: -2.910383046e-11 | AF167: -2.910383046e-11 | AG167: -2.910383046e-11 | AH167: -2.910383046e-11 | AI167: -2.910383046e-11 | AJ167: -2.910383046e-11 | AK167: -2.910383046e-11 | AL167: -2.910383046e-11 | AM167: OutLT | AN167: =FORM(K167) ->  | AO167: =SUM(CrdLT) -> 381861.196
C168: =NPV(C169,CFDBT) -> -1.899237721e-10 | D168: =D167 -> 24874.65 | E168: =E167-D167 -> 37311.975 | F168: =F167-E167 -> 49749.3 | G168: 79598.88 | H168: 42286.905 | I168: 14924.79 | J168: 0 | K168: -18463.72787 | L168: -19131.54546 | M168: -19843.45619 | N168: -20602.38733 | O168: -21411.46151 | P168: -22274.00983 | Q168: -23193.58579 | R168: -14942.83752 | S168: -15341.91477 | T168: -15764.93665 | U168: -16213.33985 | V168: -16688.64724 | W168: -8291.55 | X168: -8291.55 | Y168: -8291.55 | Z168: 0 | AA168: 0 | AB168: 0 | AC168: 0 | AD168: 0 | AE168: 0 | AF168: 0 | AG168: 0 | AH168: 0 | AI168: 0 | AJ168: 0 | AK168: 0 | AL168: 0 | AM168: CFDT
A169: cost of loans | C169: =IRR(CFDBT) -> 0.04014202191 | D169: =CFDT+IntLT -> 24874.65 | E169: =CFDT+IntLT -> 36267.2397 | F169: =CFDT+IntLT -> 47137.46175 | G169: =CFDT+IntLT -> 74897.57115 | H169: =CFDT+IntLT -> 34242.44319 | I169: =CFDT+IntLT -> 5104.27818 | J169: =CFDT+IntLT -> -10447.353 | K169: =CFDT+IntLT -> -28911.08087 | L169: =CFDT+IntLT -> -28745.24987 | M169: =CFDT+IntLT -> -28579.41887 | N169: =CFDT+IntLT -> -28413.58787 | O169: =CFDT+IntLT -> -28247.75687 | P169: =CFDT+IntLT -> -28081.92587 | Q169: =CFDT+IntLT -> -27916.09487 | R169: =CFDT+IntLT -> -18519.12108 | S169: =CFDT+IntLT -> -18353.29008 | T169: =CFDT+IntLT -> -18187.45908 | U169: =CFDT+IntLT -> -18021.62808 | V169: =CFDT+IntLT -> -17855.79708 | W169: =CFDT+IntLT -> -8789.043 | X169: =CFDT+IntLT -> -8623.212 | Y169: =CFDT+IntLT -> -8457.381 | Z169: =CFDT+IntLT -> 5.820766091e-13 | AA169: =CFDT+IntLT -> 5.820766091e-13 | AB169: =CFDT+IntLT -> 5.820766091e-13 | AC169: =CFDT+IntLT -> 5.820766091e-13 | AD169: =CFDT+IntLT -> 5.820766091e-13 | AE169: =CFDT+IntLT -> 5.820766091e-13 | AF169: =CFDT+IntLT -> 5.820766091e-13 | AG169: =CFDT+IntLT -> 5.820766091e-13 | AH169: =CFDT+IntLT -> 5.820766091e-13 | AI169: =CFDT+IntLT -> 5.820766091e-13 | AJ169: =CFDT+IntLT -> 5.820766091e-13 | AK169: =CFDT+IntLT -> 5.820766091e-13 | AL169: =CFDT+IntLT -> 5.820766091e-13 | AM169: CFDBT
A170: =NPV(C169,IntLT)*(1+C169) -> -75001.04153 | C170: =SUM(CFDBT) -> -103625.7555
A171: WORKING CAPITAL | C171: on CA | D171: =DelaysCashIn*Revenues/360 -> 0 | E171: 0 | F171: 0 | G171: 0 | H171: 0 | I171: 8583.248742 | J171: 8669.08123 | K171: 8755.772042 | L171: 8843.329763 | M171: 4465.88153 | N171: 9021.080691 | O171: 9111.291498 | P171: 9202.404413 | Q171: 9294.428457 | R171: 4693.686371 | S171: 9481.246469 | T171: 9576.058934 | U171: 9671.819523 | V171: 9768.537718 | W171: 4933.111548 | X171: 9964.885326 | Y171: 10064.53418 | Z171: 10165.17952 | AA171: 10266.83132 | AB171: 5184.749815 | AC171: 10473.19463 | AD171: 10577.92657 | AE171: 10683.70584 | AF171: 10790.5429 | AG171: 5449.224163 | AH171: 0 | AI171: 0 | AJ171: 0 | AK171: 0 | AL171: 0 | AM171: WcPay | AN171: =_xlfn.FORMULATEXT(K171) -> =DelaysCashIn*Revenues/360
C172: on CAPEX | D172: =-DelaysCashOut*Cost/360 -> 0 | E172: 0 | F172: 0 | G172: 0 | H172: 0 | I172: 3188.500406 | J172: 3221.752104 | K172: 3255.363789 | L172: 3289.339614 | M172: 2566.866455 | N172: 3358.400554 | O172: 3393.49424 | P172: 3428.969207 | Q172: 3464.829878 | R172: 2701.730278 | S172: 3537.726307 | T172: 3574.771197 | U172: 3612.220054 | V172: 3650.077593 | W172: 2843.88445 | X172: 3727.037873 | Y172: 3766.150349 | Z172: 3805.690975 | AA172: 3845.664778 | AB172: 2993.743846 | AC172: 3926.932344 | AD172: 3968.236488 | AE172: 4009.994573 | AF172: 4052.211962 | AG172: 3151.749 | AH172: 0 | AI172: 0 | AJ172: 0 | AK172: 0 | AL172: 0 | AM172: WcRec | AN172: =-DelaysCashOut*Cost/360
D173: =WcPay-WcRec -> 0 | E173: 0 | F173: 0 | G173: 0 | H173: 0 | I173: 5394.748337 | J173: 5447.329126 | K173: 5500.408253 | L173: 5553.990149 | M173: 1899.015076 | N173: 5662.680137 | O173: 5717.797258 | P173: 5773.435206 | Q173: 5829.598579 | R173: 1991.956093 | S173: 5943.520161 | T173: 6001.287737 | U173: 6059.599469 | V173: 6118.460125 | W173: 2089.227097 | X173: 6237.847453 | Y173: 6298.383831 | Z173: 6359.488546 | AA173: 6421.166539 | AB173: 2191.005969 | AC173: 6546.262282 | AD173: 6609.690084 | AE173: 6673.711265 | AF173: 6738.330935 | AG173: 2297.475163 | AH173: 0 | AI173: 0 | AJ173: 0 | AK173: 0 | AL173: 0 | AM173: WcNeed | AN173: =WcPay-WcRec
D174: =-D173 -> 0 | E174: =-E173+D173 -> 0 | F174: =-F173+E173 -> 0 | G174: 0 | H174: 0 | I174: -5394.748337 | J174: -52.58078964 | K174: -53.07912699 | L174: -53.58189556 | M174: 3654.975073 | N174: -3763.665061 | O174: -55.11712124 | P174: -55.63794788 | Q174: -56.16337286 | R174: 3837.642486 | S174: -3951.564069 | T174: -57.76757554 | U174: -58.31173201 | V174: -58.86065631 | W174: 4029.233028 | X174: -4148.620355 | Y174: -60.53637787 | Z174: -61.10471551 | AA174: -61.6779923 | AB174: 4230.16057 | AC174: -4355.256313 | AD174: -63.4278021 | AE174: -64.02118023 | AF174: -64.61967004 | AG174: 4440.855772 | AH174: 2297.475163 | AI174: 0 | AJ174: 0 | AK174: 0 | AL174: 0 | AM174: WcVar
A176: RESERVE DSRA | D176: =-IntLT-AmoLT -> 0 | E176: 1044.7353 | F176: 2611.83825 | G176: 4701.30885 | H176: 8044.46181 | I176: 9820.51182 | J176: 10447.353 | K176: 28911.08087 | L176: 28745.24987 | M176: 28579.41887 | N176: 28413.58787 | O176: 28247.75687 | P176: 28081.92587 | Q176: 27916.09487 | R176: 18519.12108 | S176: 18353.29008 | T176: 18187.45908 | U176: 18021.62808 | V176: 17855.79708 | W176: 8789.043 | X176: 8623.212 | Y176: 8457.381 | Z176: -5.820766091e-13 | AA176: -5.820766091e-13 | AB176: -5.820766091e-13 | AC176: -5.820766091e-13 | AD176: -5.820766091e-13 | AE176: -5.820766091e-13 | AF176: -5.820766091e-13 | AG176: -5.820766091e-13 | AH176: -5.820766091e-13 | AI176: -5.820766091e-13 | AJ176: -5.820766091e-13 | AK176: -5.820766091e-13 | AL176: -5.820766091e-13 | AM176: CFLT | AN176: =_xlfn.FORMULATEXT(K176) -> =-IntLT-AmoLT
D177: =SUM(OFFSET(CFLT,0,D4,1,YearReserve)) -> 8357.8824 | E177: =SUM(OFFSET(CFLT,0,E4,1,YearReserve)) -> 15357.60891 | F177: =SUM(OFFSET(CFLT,0,F4,1,YearReserve)) -> 22566.28248 | G177: =SUM(OFFSET(CFLT,0,G4,1,YearReserve)) -> 28312.32663 | H177: =SUM(OFFSET(CFLT,0,H4,1,YearReserve)) -> 49178.94569 | I177: =SUM(OFFSET(CFLT,0,I4,1,YearReserve)) -> 68103.68373 | J177: =SUM(OFFSET(CFLT,0,J4,1,YearReserve)) -> 86235.7496 | K177: =SUM(OFFSET(CFLT,0,K4,1,YearReserve)) -> 85738.2566 | L177: =SUM(OFFSET(CFLT,0,L4,1,YearReserve)) -> 85240.7636 | M177: =SUM(OFFSET(CFLT,0,M4,1,YearReserve)) -> 84743.2706 | N177: =SUM(OFFSET(CFLT,0,N4,1,YearReserve)) -> 84245.7776 | O177: =SUM(OFFSET(CFLT,0,O4,1,YearReserve)) -> 74517.14181 | P177: =SUM(OFFSET(CFLT,0,P4,1,YearReserve)) -> 64788.50602 | Q177: =SUM(OFFSET(CFLT,0,Q4,1,YearReserve)) -> 55059.87023 | R177: =SUM(OFFSET(CFLT,0,R4,1,YearReserve)) -> 54562.37723 | S177: =SUM(OFFSET(CFLT,0,S4,1,YearReserve)) -> 54064.88423 | T177: =SUM(OFFSET(CFLT,0,T4,1,YearReserve)) -> 44666.46815 | U177: =SUM(OFFSET(CFLT,0,U4,1,YearReserve)) -> 35268.05208 | V177: =SUM(OFFSET(CFLT,0,V4,1,YearReserve)) -> 25869.636 | W177: =SUM(OFFSET(CFLT,0,W4,1,YearReserve)) -> 17080.593 | X177: =SUM(OFFSET(CFLT,0,X4,1,YearReserve)) -> 8457.381 | Y177: =SUM(OFFSET(CFLT,0,Y4,1,YearReserve)) -> -1.746229827e-12 | Z177: =SUM(OFFSET(CFLT,0,Z4,1,YearReserve)) -> -1.746229827e-12 | AA177: =SUM(OFFSET(CFLT,0,AA4,1,YearReserve)) -> -1.746229827e-12 | AB177: =SUM(OFFSET(CFLT,0,AB4,1,YearReserve)) -> -1.746229827e-12 | AC177: =SUM(OFFSET(CFLT,0,AC4,1,YearReserve)) -> -1.746229827e-12 | AD177: =SUM(OFFSET(CFLT,0,AD4,1,YearReserve)) -> -1.746229827e-12 | AE177: =SUM(OFFSET(CFLT,0,AE4,1,YearReserve)) -> -1.746229827e-12 | AF177: =SUM(OFFSET(CFLT,0,AF4,1,YearReserve)) -> -1.746229827e-12 | AG177: =SUM(OFFSET(CFLT,0,AG4,1,YearReserve)) -> -1.746229827e-12 | AH177: =SUM(OFFSET(CFLT,0,AH4,1,YearReserve)) -> -1.746229827e-12 | AI177: =SUM(OFFSET(CFLT,0,AI4,1,YearReserve)) -> -1.746229827e-12 | AJ177: =SUM(OFFSET(CFLT,0,AJ4,1,YearReserve)) -> -1.164153218e-12 | AK177: =SUM(OFFSET(CFLT,0,AK4,1,YearReserve)) -> -5.820766091e-13 | AL177: =SUM(OFFSET(CFLT,0,AL4,1,YearReserve)) -> 0 | AM177: BKRes | AN177: {=SOMME(DECALER(CFLT;0;K4;1;YearReserve))}
A178: DSRA | D178: =YearProd*BKRes*RateReserve -> 0 | E178: 0 | F178: 0 | G178: 0 | H178: 0 | I178: 61293.31536 | J178: 77612.17464 | K178: 77164.43094 | L178: 76716.68724 | M178: 76268.94354 | N178: 75821.19984 | O178: 67065.42763 | P178: 58309.65542 | Q178: 49553.88321 | R178: 49106.13951 | S178: 48658.39581 | T178: 40199.82134 | U178: 31741.24687 | V178: 23282.6724 | W178: 15372.5337 | X178: 7611.6429 | Y178: -1.571606845e-12 | Z178: -1.571606845e-12 | AA178: -1.571606845e-12 | AB178: -1.571606845e-12 | AC178: -1.571606845e-12 | AD178: -1.571606845e-12 | AE178: -1.571606845e-12 | AF178: -1.571606845e-12 | AG178: -1.571606845e-12 | AH178: 0 | AI178: 0 | AJ178: 0 | AK178: 0 | AL178: 0 | AM178: BKRes2 | AN178: =YearProd*BKRes*RateReserve
D179: =MAX(MIN(D167,D178,C218),0) -> 0 | E179: =MAX(MIN(E167,E178,D218),0) -> 0 | F179: =MAX(MIN(F167,F178,E218),0) -> 0 | G179: =MAX(MIN(G167,G178,F218),0) -> 0 | H179: =MAX(MIN(H167,H178,G218),0) -> 0 | I179: =MAX(MIN(I167,I178,H218),0) -> 0 | J179: =MAX(MIN(J167,J178,I218),0) -> 1672.249538 | K179: =MAX(MIN(K167,K178,J218),0) -> 21694.67087 | L179: =MAX(MIN(L167,L178,K218),0) -> 4200.616891 | M179: =MAX(MIN(M167,M178,L218),0) -> 10472.73653 | N179: =MAX(MIN(N167,N178,M218),0) -> 0 | O179: =MAX(MIN(O167,O178,N218),0) -> 0 | P179: =MAX(MIN(P167,P178,O218),0) -> 0 | Q179: =MAX(MIN(Q167,Q178,P218),0) -> 0 | R179: =MAX(MIN(R167,R178,Q218),0) -> 0 | S179: =MAX(MIN(S167,S178,R218),0) -> 0 | T179: =MAX(MIN(T167,T178,S218),0) -> 0 | U179: =MAX(MIN(U167,U178,T218),0) -> 0 | V179: =MAX(MIN(V167,V178,U218),0) -> 0 | W179: =MAX(MIN(W167,W178,V218),0) -> 0 | X179: =MAX(MIN(X167,X178,W218),0) -> 0 | Y179: =MAX(MIN(Y167,Y178,X218),0) -> 0 | Z179: =MAX(MIN(Z167,Z178,Y218),0) -> 0 | AA179: =MAX(MIN(AA167,AA178,Z218),0) -> 0 | AB179: =MAX(MIN(AB167,AB178,AA218),0) -> 0 | AC179: =MAX(MIN(AC167,AC178,AB218),0) -> 0 | AD179: =MAX(MIN(AD167,AD178,AC218),0) -> 0 | AE179: =MAX(MIN(AE167,AE178,AD218),0) -> 0 | AF179: =MAX(MIN(AF167,AF178,AE218),0) -> 0 | AG179: =MAX(MIN(AG167,AG178,AF218),0) -> 0 | AH179: =MAX(MIN(AH167,AH178,AG218),0) -> 0 | AI179: =MAX(MIN(AI167,AI178,AH218),0) -> 0 | AJ179: =MAX(MIN(AJ167,AJ178,AI218),0) -> 0 | AK179: =MAX(MIN(AK167,AK178,AJ218),0) -> 0 | AL179: =MAX(MIN(AL167,AL178,AK218),0) -> 0 | AM179: DSRA | AN179: =MAX(MIN(K167;K178;J218);0)
D180: =-D179+C179 -> 0 | E180: 0 | F180: 0 | G180: 0 | H180: 0 | I180: =-I179+H179 -> 0 | J180: =-J179+I179 -> -1672.249538 | K180: -20022.42134 | L180: 17494.05398 | M180: -6272.119639 | N180: 10472.73653 | O180: 0 | P180: 0 | Q180: 0 | R180: 0 | S180: 0 | T180: 0 | U180: 0 | V180: 0 | W180: 0 | X180: 0 | Y180: 0 | Z180: 0 | AA180: 0 | AB180: 0 | AC180: 0 | AD180: 0 | AE180: 0 | AF180: 0 | AG180: 0 | AH180: 0 | AI180: 0 | AJ180: 0 | AK180: 0 | AL180: 0 | AM180: CFDSRA
A182: TAX | C182: PLBEFTAX | D182: =INDIRECT($C182) -> 0 | E182: -1091.010842 | F182: -2791.046097 | G182: -5126.236523 | H182: -8909.223666 | I182: 11082.515 | J182: 10988.96092 | K182: 11150.24906 | L182: 12386.04169 | M182: -10586.50885 | N182: 14592.27094 | O182: 15505.02473 | P182: 16431.40889 | Q182: 17372.15478 | R182: -6124.781609 | S182: 19609.14391 | T182: 20434.88425 | U182: 21267.01764 | V182: 22105.75206 | W182: -2569.72183 | X182: 24186.65069 | Y182: 24980.50331 | Z182: 26192.51913 | AA182: 27242.32105 | AB182: 587.7436429 | AC182: 28416.53358 | AD182: 28950.31479 | AE182: 29487.86482 | AF182: 30029.21644 | AG182: 1914.859111 | AH182: 829.155 | AI182: 829.155 | AJ182: 829.155 | AK182: 829.155 | AL182: 829.155
D183: =C183+D182+C184/TaxCorp -> 0 | E183: -1091.010842 | F183: -3882.056939 | G183: -9008.293462 | H183: -17917.51713 | I183: =H183+I182+H184/TaxCorp -> -6835.002125 | J183: 4153.958793 | K183: 11150.24906 | L183: 12386.04169 | M183: -10586.50885 | N183: 4005.762085 | O183: 15505.02473 | P183: 16431.40889 | Q183: 17372.15478 | R183: -6124.781609 | S183: 13484.36231 | T183: 20434.88425 | U183: 21267.01764 | V183: 22105.75206 | W183: -2569.72183 | X183: 21616.92886 | Y183: 24980.50331 | Z183: 26192.51913 | AA183: 27242.32105 | AB183: 587.7436429 | AC183: 28416.53358 | AD183: 28950.31479 | AE183: 29487.86482 | AF183: 30029.21644 | AG183: 1914.859111 | AH183: 829.155 | AI183: 829.155 | AJ183: 829.155 | AK183: 829.155 | AL183: 829.155 | AM183: PLBEFTAXCUM
D184: =-(PLBEFTAXCUM>0)*TaxCorp*PLBEFTAXCUM -> 0 | E184: 0 | F184: 0 | G184: 0 | H184: 0 | I184: 0 | J184: -1246.187638 | K184: -3345.074719 | L184: -3715.812506 | M184: 0 | N184: -1201.728626 | O184: -4651.507418 | P184: -4929.422667 | Q184: -5211.646435 | R184: 0 | S184: -4045.308692 | T184: -6130.465274 | U184: -6380.105291 | V184: -6631.725619 | W184: 0 | X184: -6485.078657 | Y184: -7494.150994 | Z184: -7857.755738 | AA184: -8172.696316 | AB184: -176.3230929 | AC184: -8524.960075 | AD184: -8685.094438 | AE184: -8846.359447 | AF184: -9008.764932 | AG184: -574.4577334 | AH184: -248.7465 | AI184: -248.7465 | AJ184: -248.7465 | AK184: -248.7465 | AL184: -248.7465 | AM184: TAXCO
A186: DIVIDEND | C186: RATEDIVIDEND | D186: =INDIRECT($C186) -> 1 | E186: =INDIRECT($C186) -> 1 | F186: 1 | G186: 1 | H186: 1 | I186: 1 | J186: 1 | K186: 1 | L186: 1 | M186: 1 | N186: 1 | O186: 1 | P186: 1 | Q186: 1 | R186: 1 | S186: 1 | T186: 1 | U186: 1 | V186: 1 | W186: 1 | X186: 1 | Y186: 1 | Z186: 1 | AA186: 1 | AB186: 1 | AC186: 1 | AD186: 1 | AE186: 1 | AF186: 1 | AG186: 1 | AH186: 1 | AI186: 1 | AJ186: 1 | AK186: 1 | AL186: 1
C187: PLAFTERTAX | D187: =INDIRECT($C187) -> 0 | E187: -1091.010842 | F187: -2791.046097 | G187: -5126.236523 | H187: -8909.223666 | I187: 11082.515 | J187: 9742.77328 | K187: 7805.174345 | L187: 8670.229182 | M187: -10586.50885 | N187: 13390.54231 | O187: 10853.51731 | P187: 11501.98622 | Q187: 12160.50835 | R187: -6124.781609 | S187: 15563.83522 | T187: 14304.41897 | U187: 14886.91235 | V187: 15474.02644 | W187: -2569.72183 | X187: 17701.57203 | Y187: 17486.35232 | Z187: 18334.76339 | AA187: 19069.62474 | AB187: 411.42055 | AC187: 19891.57351 | AD187: 20265.22035 | AE187: 20641.50538 | AF187: 21020.45151 | AG187: 1340.401378 | AH187: 580.4085 | AI187: 580.4085 | AJ187: 580.4085 | AK187: 580.4085 | AL187: 580.4085
D188: =C188+D187+C192 -> 0 | E188: =D188+E187+D192 -> -1091.010842 | F188: -3882.056939 | G188: -9008.293462 | H188: -17917.51713 | I188: =H188+I187+H192 -> -6835.002125 | J188: 2907.771155 | K188: 9477.423884 | L188: 18147.65307 | M188: -6385.891963 | N188: 7004.65035 | O188: 10853.51731 | P188: 11501.98622 | Q188: 12160.50835 | R188: -6124.781609 | S188: 9439.053614 | T188: 14304.41897 | U188: 14886.91235 | V188: 15474.02644 | W188: -2569.72183 | X188: 15131.8502 | Y188: 17486.35232 | Z188: 18334.76339 | AA188: 19069.62474 | AB188: 411.42055 | AC188: 19891.57351 | AD188: 20265.22035 | AE188: 20641.50538 | AF188: 21020.45151 | AG188: 1340.401378 | AH188: 580.4085 | AI188: 580.4085 | AJ188: 580.4085 | AK188: 580.4085 | AL188: 580.4085
D189: =MAX(D188-D179,0) -> 0 | E189: =MAX(E188-E179,0) -> 0 | F189: 0 | G189: 0 | H189: 0 | I189: 0 | J189: 1235.521617 | K189: 0 | L189: 13947.03617 | M189: 0 | N189: 7004.65035 | O189: 10853.51731 | P189: 11501.98622 | Q189: 12160.50835 | R189: 0 | S189: 9439.053614 | T189: 14304.41897 | U189: 14886.91235 | V189: 15474.02644 | W189: 0 | X189: 15131.8502 | Y189: 17486.35232 | Z189: 18334.76339 | AA189: 19069.62474 | AB189: 411.42055 | AC189: 19891.57351 | AD189: 20265.22035 | AE189: 20641.50538 | AF189: 21020.45151 | AG189: 1340.401378 | AH189: 580.4085 | AI189: 580.4085 | AJ189: 580.4085 | AK189: 580.4085 | AL189: 580.4085
C190: CFBEFDIV | D190: =INDIRECT($C190) -> 66.2 | E190: =INDIRECT($C190) -> -991.7108421 | F190: -2658.646097 | G190: -4914.396523 | H190: -8796.683666 | I190: 18967.48667 | J190: 22930.19249 | K190: 2528.367352 | L190: 2725.10183 | M190: -13534.98997 | N190: 2264.489923 | O190: 2626.938672 | P190: 2412.338447 | Q190: 2150.759182 | R190: -3989.976638 | S190: 9510.356388 | T190: 11721.71475 | U190: 11855.26076 | V190: 11966.51855 | W190: 6407.961198 | X190: 18501.40167 | Y190: 22374.26594 | Z190: 31513.65867 | AA190: 32247.94674 | AB190: 17881.58112 | AC190: 28776.31719 | AD190: 33441.79255 | AE190: 33817.4842 | AF190: 34195.83184 | AG190: 19021.25715 | AH190: 2877.883663 | AI190: 580.4085 | AJ190: 580.4085 | AK190: 580.4085 | AL190: 580.4085
D191: =D190 -> 66.2 | E191: =D191+E190-D192 -> -925.5108421 | F191: =E191+F190-E192 -> -3584.156939 | G191: -8498.553462 | H191: -17295.23713 | I191: 1672.249538 | J191: 24602.44203 | K191: 28366.331 | L191: 31091.43283 | M191: 31503.47904 | N191: 33767.96896 | O191: 43399.55798 | P191: 56665.41374 | Q191: 70318.15914 | R191: 78488.69085 | S191: 87999.04724 | T191: 109159.8156 | U191: 135319.4953 | V191: 162172.9262 | W191: 184054.9139 | X191: 202556.3155 | Y191: 240062.4317 | Z191: 289062.4427 | AA191: 339645.1528 | AB191: 376596.3587 | AC191: 405784.0964 | AD191: 459117.4625 | AE191: 513200.167 | AF191: 568037.5042 | AG191: 608079.2129 | AH191: 612297.4979 | AI191: 613458.3149 | AJ191: 614619.1319 | AK191: 615779.9489 | AL191: 616940.7659
D192: =-MAX(0,MIN(D189*D186,D191)) -> 0 | E192: =-MAX(0,MIN(E189*E186,E191)) -> 0 | F192: 0 | G192: 0 | H192: 0 | I192: 0 | J192: -1235.521617 | K192: 0 | L192: -13947.03617 | M192: 0 | N192: -7004.65035 | O192: -10853.51731 | P192: -11501.98622 | Q192: -12160.50835 | R192: 0 | S192: -9439.053614 | T192: -14304.41897 | U192: -14886.91235 | V192: -15474.02644 | W192: 0 | X192: -15131.8502 | Y192: -17486.35232 | Z192: -18334.76339 | AA192: -19069.62474 | AB192: -411.42055 | AC192: -19891.57351 | AD192: -20265.22035 | AE192: -20641.50538 | AF192: -21020.45151 | AG192: -1340.401378 | AH192: -580.4085 | AI192: -580.4085 | AJ192: -580.4085 | AK192: -580.4085 | AL192: -580.4085 | AM192: DIVIDEND
A194: CASH ACCOUNTS | D194: 0 | E194: =(POSBAL+DSRA)*RateDeposit -> 0 | F194: =POSBAL*RateDeposit -> 0 | G194: 0 | H194: 0 | I194: =POSBAL*RateDeposit -> 16.72249538 | J194: 216.9467087 | K194: 42.00616891 | L194: 104.7273653 | M194: 0 | N194: 0 | O194: 0 | P194: 0 | Q194: 0 | R194: 0 | S194: 0 | T194: 0 | U194: 0 | V194: 0 | W194: 0 | X194: 0 | Y194: 0 | Z194: 0 | AA194: 0 | AB194: 145.2449403 | AC194: 234.0923772 | AD194: 365.8580992 | AE194: 497.6178874 | AF194: 629.3716907 | AG194: 806.1802484 | AH194: 829.155 | AI194: 829.155 | AJ194: 829.155 | AK194: 829.155 | AL194: 829.155 | AM194: POSINT
D195: 0 | E195: =NEGBAL*RateFunding -> 46.27554211 | F195: =NEGBAL*RateFunding -> 179.207847 | G195: 424.9276731 | H195: 864.7618564 | I195: 0 | J195: 0 | K195: 0 | L195: 0 | M195: 466.7186538 | N195: 180.0898486 | O195: 591.4187804 | P195: 1045.901169 | Q195: 1546.388628 | R195: 1745.88746 | S195: 1742.322321 | T195: 1871.457532 | U195: 2023.040111 | V195: 2198.415506 | W195: 1878.017446 | X195: 1709.539873 | Y195: 1465.144192 | Z195: 806.1994273 | AA195: 147.2833269 | AB195: 0 | AC195: 0 | AD195: 0 | AE195: 0 | AF195: 0 | AG195: 0 | AH195: 0 | AI195: 0 | AJ195: 0 | AK195: 0 | AL195: 0 | AM195: NEGINT
D196: =POSINT-NEGINT -> 0 | E196: =POSINT-NEGINT -> -46.27554211 | F196: -179.207847 | G196: -424.9276731 | H196: -864.7618564 | I196: 16.72249538 | J196: 216.9467087 | K196: 42.00616891 | L196: 104.7273653 | M196: -466.7186538 | N196: -180.0898486 | O196: -591.4187804 | P196: -1045.901169 | Q196: -1546.388628 | R196: -1745.88746 | S196: -1742.322321 | T196: -1871.457532 | U196: -2023.040111 | V196: -2198.415506 | W196: -1878.017446 | X196: -1709.539873 | Y196: -1465.144192 | Z196: -806.1994273 | AA196: -147.2833269 | AB196: 145.2449403 | AC196: 234.0923772 | AD196: 365.8580992 | AE196: 497.6178874 | AF196: 629.3716907 | AG196: 806.1802484 | AH196: 829.155 | AI196: 829.155 | AJ196: 829.155 | AK196: 829.155 | AL196: 829.155 | AM196: INTST
A198: CASH FLOW STATEMENT
B200: REVENUES | D200: =INDIRECT($B200) -> 0 | E200: =INDIRECT($B200) -> 0 | F200: =INDIRECT($B200) -> 0 | G200: 0 | H200: 0 | I200: 51499.49245 | J200: 52014.48738 | K200: 52534.63225 | L200: 53059.97858 | M200: 26795.28918 | N200: 54126.48415 | O200: 54667.74899 | P200: 55214.42648 | Q200: 55766.57074 | R200: 28162.11822 | S200: 56887.47881 | T200: 57456.3536 | U200: 58030.91714 | V200: 58611.22631 | W200: 29598.66929 | X200: 59789.31196 | Y200: 60387.20508 | Z200: 60991.07713 | AA200: 61600.9879 | AB200: 31108.49889 | AC200: 62839.16776 | AD200: 63467.55943 | AE200: 64102.23503 | AF200: 64743.25738 | AG200: 32695.34498 | AH200: 0 | AI200: 0 | AJ200: 0 | AK200: 0 | AL200: 0
B201: COST | D201: =INDIRECT($B201) -> 0 | E201: 0 | F201: =INDIRECT($B201) -> 0 | G201: 0 | H201: 0 | I201: -12754.00162 | J201: -12887.00841 | K201: -13021.45516 | L201: -13157.35846 | M201: -10267.46582 | N201: -13433.60222 | O201: -13573.97696 | P201: -13715.87683 | Q201: -13859.31951 | R201: -10806.92111 | S201: -14150.90523 | T201: -14299.08479 | U201: -14448.88022 | V201: -14600.31037 | W201: -11375.5378 | X201: -14908.15149 | Y201: -15064.6014 | Z201: -15222.7639 | AA201: -15382.65911 | AB201: -11974.97538 | AC201: -15707.72937 | AD201: -15872.94595 | AE201: -16039.97829 | AF201: -16208.84785 | AG201: -12606.996 | AH201: 0 | AI201: 0 | AJ201: 0 | AK201: 0 | AL201: 0
B202: TAX | D202: =INDIRECT($B202) -> 0 | E202: 0 | F202: =INDIRECT($B202) -> 0 | G202: 0 | H202: 0 | I202: -4619.186503 | J202: -4668.111755 | K202: -4717.581202 | L202: -4767.601388 | M202: -4671.650882 | N202: -4869.320604 | O202: -4921.03317 | P202: -4973.323551 | Q202: -5026.198745 | R202: -4917.807701 | S202: -5133.732037 | T202: -5188.40461 | U202: -5243.690946 | V202: -5299.598533 | W202: -5177.342869 | X202: -5413.307905 | Y202: -5471.125177 | Z202: -5529.594675 | AA202: -5588.724408 | AB202: -5451.024803 | AC202: -5708.997176 | AD202: -5770.156789 | AE202: -5832.009798 | AF202: -5894.564781 | AG202: -5739.670112 | AH202: 0 | AI202: 0 | AJ202: 0 | AK202: 0 | AL202: 0
B203: WCVAR | D203: =INDIRECT($B203) -> 0 | E203: 0 | F203: =INDIRECT($B203) -> 0 | G203: 0 | H203: 0 | I203: -5394.748337 | J203: -52.58078964 | K203: -53.07912699 | L203: -53.58189556 | M203: 3654.975073 | N203: -3763.665061 | O203: -55.11712124 | P203: -55.63794788 | Q203: -56.16337286 | R203: 3837.642486 | S203: -3951.564069 | T203: -57.76757554 | U203: -58.31173201 | V203: -58.86065631 | W203: 4029.233028 | X203: -4148.620355 | Y203: -60.53637787 | Z203: -61.10471551 | AA203: -61.6779923 | AB203: 4230.16057 | AC203: -4355.256313 | AD203: -63.4278021 | AE203: -64.02118023 | AF203: -64.61967004 | AG203: 4440.855772 | AH203: 2297.475163 | AI203: 0 | AJ203: 0 | AK203: 0 | AL203: 0
B204: CAPEX | D204: =INDIRECT($B204) -> -33100 | E204: =INDIRECT($B204) -> -49650 | F204: =INDIRECT($B204) -> -66200 | G204: -105920 | H204: -56270 | I204: -19860 | J204: 0 | K204: 0 | L204: 0 | M204: 0 | N204: 0 | O204: 0 | P204: 0 | Q204: 0 | R204: 0 | S204: 0 | T204: 0 | U204: 0 | V204: 0 | W204: 0 | X204: 0 | Y204: 0 | Z204: 0 | AA204: 0 | AB204: 0 | AC204: 0 | AD204: 0 | AE204: 0 | AF204: 0 | AG204: 0 | AH204: 0 | AI204: 0 | AJ204: 0 | AK204: 0 | AL204: 0
D205: =SUM(D200:D204) -> -33100 | E205: -49650 | F205: -66200 | G205: -105920 | H205: -56270 | I205: 8871.555992 | J205: 34406.78642 | K205: 34742.51677 | L205: 35081.43684 | M205: 15511.14755 | N205: 32059.89626 | O205: 36117.62174 | P205: 36469.58815 | Q205: 36824.88911 | R205: 16275.0319 | S205: 33651.27748 | T205: 37911.09663 | U205: 38280.03424 | V205: 38652.45675 | W205: 17075.02164 | X205: 35319.2322 | Y205: 39790.94213 | Z205: 40177.61384 | AA205: 40567.92639 | AB205: 17912.65927 | AC205: 37067.18489 | AD205: 41761.02889 | AE205: 42166.22576 | AF205: 42575.22508 | AG205: 18789.53464 | AH205: 2297.475163 | AI205: 0 | AJ205: 0 | AK205: 0 | AL205: 0 | AM205: CFOP
B206: EQ | D206: =INDIRECT($B206) -> 8291.55 | E206: =INDIRECT($B206) -> 12437.325 | F206: =INDIRECT($B206) -> 16583.1 | G206: 26532.96 | H206: 14095.635 | I206: 4974.93 | J206: 0 | K206: 0 | L206: 0 | M206: 0 | N206: 0 | O206: 0 | P206: 0 | Q206: 0 | R206: 0 | S206: 0 | T206: 0 | U206: 0 | V206: 0 | W206: 0 | X206: 0 | Y206: 0 | Z206: 0 | AA206: 0 | AB206: 0 | AC206: 0 | AD206: 0 | AE206: 0 | AF206: 0 | AG206: 0 | AH206: 0 | AI206: 0 | AJ206: 0 | AK206: 0 | AL206: 0
B207: DT | D207: =INDIRECT($B207) -> 24874.65 | E207: 37311.975 | F207: =INDIRECT($B207) -> 49749.3 | G207: 79598.88 | H207: 42286.905 | I207: 14924.79 | J207: 0 | K207: 0 | L207: 0 | M207: 0 | N207: 0 | O207: 0 | P207: 0 | Q207: 0 | R207: 0 | S207: 0 | T207: 0 | U207: 0 | V207: 0 | W207: 0 | X207: 0 | Y207: 0 | Z207: 0 | AA207: 0 | AB207: 0 | AC207: 0 | AD207: 0 | AE207: 0 | AF207: 0 | AG207: 0 | AH207: 0 | AI207: 0 | AJ207: 0 | AK207: 0 | AL207: 0
B208: AMOLT | D208: =INDIRECT($B208) -> 0 | E208: 0 | F208: =INDIRECT($B208) -> 0 | G208: 0 | H208: 0 | I208: 0 | J208: 0 | K208: -18463.72787 | L208: -19131.54546 | M208: -19843.45619 | N208: -20602.38733 | O208: -21411.46151 | P208: -22274.00983 | Q208: -23193.58579 | R208: -14942.83752 | S208: -15341.91477 | T208: -15764.93665 | U208: -16213.33985 | V208: -16688.64724 | W208: -8291.55 | X208: -8291.55 | Y208: -8291.55 | Z208: 0 | AA208: 0 | AB208: 0 | AC208: 0 | AD208: 0 | AE208: 0 | AF208: 0 | AG208: 0 | AH208: 0 | AI208: 0 | AJ208: 0 | AK208: 0 | AL208: 0
B209: INTST | D209: =INDIRECT($B209) -> 0 | E209: =INDIRECT($B209) -> -46.27554211 | F209: =INDIRECT($B209) -> -179.207847 | G209: -424.9276731 | H209: -864.7618564 | I209: 16.72249538 | J209: 216.9467087 | K209: 42.00616891 | L209: 104.7273653 | M209: -466.7186538 | N209: -180.0898486 | O209: -591.4187804 | P209: -1045.901169 | Q209: -1546.388628 | R209: -1745.88746 | S209: -1742.322321 | T209: -1871.457532 | U209: -2023.040111 | V209: -2198.415506 | W209: -1878.017446 | X209: -1709.539873 | Y209: -1465.144192 | Z209: -806.1994273 | AA209: -147.2833269 | AB209: 145.2449403 | AC209: 234.0923772 | AD209: 365.8580992 | AE209: 497.6178874 | AF209: 629.3716907 | AG209: 806.1802484 | AH209: 829.155 | AI209: 829.155 | AJ209: 829.155 | AK209: 829.155 | AL209: 829.155
B210: INTLT | D210: =INDIRECT($B210) -> 0 | E210: -1044.7353 | F210: =INDIRECT($B210) -> -2611.83825 | G210: -4701.30885 | H210: -8044.46181 | I210: -9820.51182 | J210: -10447.353 | K210: -10447.353 | L210: -9613.70441 | M210: -8735.962681 | N210: -7811.200537 | O210: -6836.295351 | P210: -5807.916038 | Q210: -4722.509072 | R210: -3576.283562 | S210: -3011.375311 | T210: -2422.522425 | U210: -1808.288226 | V210: -1167.149835 | W210: -497.493 | X210: -331.662 | Y210: -165.831 | Z210: 5.820766091e-13 | AA210: 5.820766091e-13 | AB210: 5.820766091e-13 | AC210: 5.820766091e-13 | AD210: 5.820766091e-13 | AE210: 5.820766091e-13 | AF210: 5.820766091e-13 | AG210: 5.820766091e-13 | AH210: 5.820766091e-13 | AI210: 5.820766091e-13 | AJ210: 5.820766091e-13 | AK210: 5.820766091e-13 | AL210: 5.820766091e-13
D211: =SUM(D205:D210) -> 66.2 | E211: =SUM(E205:E210) -> -991.7108421 | F211: -2658.646097 | G211: -4914.396523 | H211: -8796.683666 | I211: 18967.48667 | J211: 24176.38013 | K211: 5873.442072 | L211: 6440.914337 | M211: -13534.98997 | N211: 3466.218549 | O211: 7278.446089 | P211: 7341.761114 | Q211: 7362.405617 | R211: -3989.976638 | S211: 13555.66508 | T211: 17852.18002 | U211: 18235.36606 | V211: 18598.24417 | W211: 6407.961198 | X211: 24986.48033 | Y211: 29868.41694 | Z211: 39371.41441 | AA211: 40420.64306 | AB211: 18057.90421 | AC211: 37301.27727 | AD211: 42126.88699 | AE211: 42663.84364 | AF211: 43204.59677 | AG211: 19595.71488 | AH211: 3126.630163 | AI211: 829.155 | AJ211: 829.155 | AK211: 829.155 | AL211: 829.155 | AM211: CFBEFTAX
B212: TAXCO | D212: =INDIRECT($B212) -> 0 | E212: =INDIRECT($B212) -> 0 | F212: 0 | G212: 0 | H212: 0 | I212: 0 | J212: -1246.187638 | K212: -3345.074719 | L212: -3715.812506 | M212: 0 | N212: -1201.728626 | O212: -4651.507418 | P212: -4929.422667 | Q212: -5211.646435 | R212: 0 | S212: -4045.308692 | T212: -6130.465274 | U212: -6380.105291 | V212: -6631.725619 | W212: 0 | X212: -6485.078657 | Y212: -7494.150994 | Z212: -7857.755738 | AA212: -8172.696316 | AB212: -176.3230929 | AC212: -8524.960075 | AD212: -8685.094438 | AE212: -8846.359447 | AF212: -9008.764932 | AG212: -574.4577334 | AH212: -248.7465 | AI212: -248.7465 | AJ212: -248.7465 | AK212: -248.7465 | AL212: -248.7465
D213: =SUM(D211:D212) -> 66.2 | E213: =SUM(E211:E212) -> -991.7108421 | F213: =SUM(F211:F212) -> -2658.646097 | G213: =SUM(G211:G212) -> -4914.396523 | H213: =SUM(H211:H212) -> -8796.683666 | I213: =SUM(I211:I212) -> 18967.48667 | J213: =SUM(J211:J212) -> 22930.19249 | K213: =SUM(K211:K212) -> 2528.367352 | L213: =SUM(L211:L212) -> 2725.10183 | M213: =SUM(M211:M212) -> -13534.98997 | N213: =SUM(N211:N212) -> 2264.489923 | O213: =SUM(O211:O212) -> 2626.938672 | P213: =SUM(P211:P212) -> 2412.338447 | Q213: =SUM(Q211:Q212) -> 2150.759182 | R213: =SUM(R211:R212) -> -3989.976638 | S213: =SUM(S211:S212) -> 9510.356388 | T213: =SUM(T211:T212) -> 11721.71475 | U213: =SUM(U211:U212) -> 11855.26076 | V213: =SUM(V211:V212) -> 11966.51855 | W213: =SUM(W211:W212) -> 6407.961198 | X213: =SUM(X211:X212) -> 18501.40167 | Y213: =SUM(Y211:Y212) -> 22374.26594 | Z213: =SUM(Z211:Z212) -> 31513.65867 | AA213: =SUM(AA211:AA212) -> 32247.94674 | AB213: =SUM(AB211:AB212) -> 17881.58112 | AC213: =SUM(AC211:AC212) -> 28776.31719 | AD213: =SUM(AD211:AD212) -> 33441.79255 | AE213: =SUM(AE211:AE212) -> 33817.4842 | AF213: =SUM(AF211:AF212) -> 34195.83184 | AG213: =SUM(AG211:AG212) -> 19021.25715 | AH213: =SUM(AH211:AH212) -> 2877.883663 | AI213: =SUM(AI211:AI212) -> 580.4085 | AJ213: =SUM(AJ211:AJ212) -> 580.4085 | AK213: =SUM(AK211:AK212) -> 580.4085 | AL213: =SUM(AL211:AL212) -> 580.4085 | AM213: CFBEFDIV
B214: CFDSRA | D214: =INDIRECT($B214) -> 0 | E214: =INDIRECT($B214) -> 0 | F214: =INDIRECT($B214) -> 0 | G214: 0 | H214: 0 | I214: 0 | J214: -1672.249538 | K214: -20022.42134 | L214: 17494.05398 | M214: -6272.119639 | N214: 10472.73653 | O214: 0 | P214: 0 | Q214: 0 | R214: 0 | S214: 0 | T214: 0 | U214: 0 | V214: 0 | W214: 0 | X214: 0 | Y214: 0 | Z214: 0 | AA214: 0 | AB214: 0 | AC214: 0 | AD214: 0 | AE214: 0 | AF214: 0 | AG214: 0 | AH214: 0 | AI214: 0 | AJ214: 0 | AK214: 0 | AL214: 0
B215: DIVIDEND | D215: =INDIRECT($B215) -> 0 | E215: 0 | F215: =INDIRECT($B215) -> 0 | G215: 0 | H215: 0 | I215: 0 | J215: -1235.521617 | K215: 0 | L215: -13947.03617 | M215: 0 | N215: -7004.65035 | O215: -10853.51731 | P215: -11501.98622 | Q215: -12160.50835 | R215: 0 | S215: -9439.053614 | T215: -14304.41897 | U215: -14886.91235 | V215: -15474.02644 | W215: 0 | X215: -15131.8502 | Y215: -17486.35232 | Z215: -18334.76339 | AA215: -19069.62474 | AB215: -411.42055 | AC215: -19891.57351 | AD215: -20265.22035 | AE215: -20641.50538 | AF215: -21020.45151 | AG215: -1340.401378 | AH215: -580.4085 | AI215: -580.4085 | AJ215: -580.4085 | AK215: -580.4085 | AL215: -580.4085
D216: =SUM(D213:D215) -> 66.2 | E216: =SUM(E213:E215) -> -991.7108421 | F216: -2658.646097 | G216: =SUM(G213:G215) -> -4914.396523 | H216: =SUM(H213:H215) -> -8796.683666 | I216: =SUM(I213:I215) -> 18967.48667 | J216: 20022.42134 | K216: -17494.05398 | L216: 6272.119639 | M216: -19807.1096 | N216: 5732.576102 | O216: -8226.578636 | P216: -9089.647776 | Q216: -10009.74917 | R216: -3989.976638 | S216: 71.30277458 | T216: -2582.704227 | U216: -3031.651583 | V216: -3507.507898 | W216: 6407.961198 | X216: 3369.551475 | Y216: 4887.913622 | Z216: 13178.89528 | AA216: =SUM(AA213:AA215) -> 13178.32201 | AB216: 17470.16057 | AC216: 8884.743687 | AD216: 13176.5722 | AE216: 13175.97882 | AF216: 13175.38033 | AG216: 17680.85577 | AH216: 2297.475163 | AI216: -1.261923899e-11 | AJ216: 2.273736754e-12 | AK216: 2.33285391e-10 | AL216: 8.719780453e-10
... 59 more rows
